Workbook

Sheet INGRESO DE DATOS
A13: LLENE LA INFORMACIÓN DEL ASEGURADO PROPUESTO:
B15: Nombre del Asegurado Titular: | D15: JOHN DOE
B17: Número de adultos en la póliza: | D17: 2 | F17: Número de niños en la póliza: | H17: 3
B19: Edad del Asegurado Titular: | D19: 65 | F19: Edad del/la cónyuge: | H19: 71
C21: Cotizador por: | D21: NOMBRE DE AGENTE
A25: SELECCIONE EL PRODUCTO PARA VER LA COTIZACIÓN CORRESPONDIENTE:
B33: 2 | D33: 2

Sheet Global Ultimate Health Plan
A14: Global Ultimate Health Plan | D14: Nombre del Asegurado Titular: | F14: =+'INGRESO DE DATOS'!$D$15 -> JOHN DOE
D16: Cotizado por: | F16: =+'INGRESO DE DATOS'!$D$21 -> NOMBRE DE AGENTE
D18: Número de adultos en la póliza: | F18: =+'INGRESO DE DATOS'!$D$17 -> 2 | H18: Edad del Asegurado Titular: | I18: =+'INGRESO DE DATOS'!$D$19 -> 65
D20: Número de niños en la póliza: | F20: 3 | H20: Edad del/la conyuge: | I20: =+'INGRESO DE DATOS'!$H$19 -> 71
D22: Número de niños menores de 16 años: | F22: =+'INGRESO DE DATOS'!$B$33 -> 2 | H22: Fecha de la cotización: | I22: =NOW() -> 2022-12-06T15:03:42.210
H23: FALSE | K23: s
E24: Deducibles | G24: PLAN 1 | H24: PLAN 2
E25: En el país de residencia | G25: 0 | H25: 1000
E26: Fuera del país de residencia | G26: 0 | H26: 1000
E28: Tarifas Anuales
E29: Prima para Asegurado Titular | G29: =(VLOOKUP($I$18,Tablas!$A$905:$G$971,3,TRUE))*1.1494 -> 106520.645 | H29: =(VLOOKUP($I$18,Tablas!$A$905:$G$971,4,TRUE))*1.1494 -> 68726.0742
E30: Prima para conyuge | G30: =(IF($F$18=1,0,(VLOOKUP($I$20,Tablas!$A$905:$G$971,3,TRUE))))*1.1494 -> 175778.8914 | H30: =(IF($F$18=1,0,(VLOOKUP($I$20,Tablas!$A$905:$G$971,4,TRUE))))*1.1494 -> 113408.9992
E31: Prima para hijo (s) | G31: =(IF(('INGRESO DE DATOS'!H17 - 'INGRESO DE DATOS'!B33)<=0,0,IF(('INGRESO DE DATOS'!H17 - 'INGRESO DE DATOS'!B33)=Tablas!A972,Tablas!C972,IF(('INGRESO DE DATOS'!H17 - 'INGRESO DE DATOS'!B33)=Tablas!A973,Tablas!C973,Tablas!C974))))*1.1494 -> 11158.3752 | H31: =(IF(('INGRESO DE DATOS'!H17 - 'INGRESO DE DATOS'!B33)<=0,0,IF(('INGRESO DE DATOS'!H17 - 'INGRESO DE DATOS'!B33)=Tablas!A972,Tablas!D972,IF(('INGRESO DE DATOS'!H17 - 'INGRESO DE DATOS'!B33)=Tablas!A973,Tablas!D973,Tablas!D974))))*1.1494 -> 7202.1404
E32: Total de Prima neta | G32: =(SUM(G29:G31)) -> 293457.9116 | H32: =(SUM(H29:H31)) -> 189337.2138
E33: Costo administrativo anual | G33: 86 | H33: 86
E34: Impuesto (14.49%) | G34: =(G33)*0% -> 0 | H34: =(H33)*0% -> 0
E36: TOTAL ANUAL | G36: =SUM(G32:G34) -> 293543.9116 | H36: =SUM(H32:H34) -> 189423.2138
E37: Ahorros en tarifas de prima para niños | G37: =(IF(('INGRESO DE DATOS'!H17 - 'INGRESO DE DATOS'!B33) < 0, NA(), (IF('INGRESO DE DATOS'!H17<=0,0,IF('INGRESO DE DATOS'!H17=Tablas!A972,Tablas!C972,IF('INGRESO DE DATOS'!H17=Tablas!A973,Tablas!C973,Tablas!C974))) - IF(('INGRESO DE DATOS'!H17 - 'INGRESO DE DATOS'!B33)<=0,0,IF(('INGRESO DE DATOS'!H17 - 'INGRESO DE DATOS'!B33)=Tablas!A972,Tablas!C972,IF(('INGRESO DE DATOS'!H17 - 'INGRESO DE DATOS'!B33)=Tablas!A973,Tablas!C973,Tablas!C974))))))*1.1494 -> 15616.8978 | H37: =(IF(('INGRESO DE DATOS'!H17 - 'INGRESO DE DATOS'!B33) < 0, NA(), (IF('INGRESO DE DATOS'!H17<=0,0,IF('INGRESO DE DATOS'!H17=Tablas!A972,Tablas!D972,IF('INGRESO DE DATOS'!H17=Tablas!A973,Tablas!D973,Tablas!D974))) - IF(('INGRESO DE DATOS'!H17 - 'INGRESO DE DATOS'!B33)<=0,0,IF(('INGRESO DE DATOS'!H17 - 'INGRESO DE DATOS'!B33)=Tablas!A972,Tablas!D972,IF(('INGRESO DE DATOS'!H17 - 'INGRESO DE DATOS'!B33)=Tablas!A973,Tablas!D973,Tablas!D974))))))*1.1494 -> 10077.9392
E39: Tarifas Semianuales
E40: Prima para Asegurado Titular | G40: =(VLOOKUP($I$18,Tablas!$A$1428:$G$1494,3,TRUE))*1.1494 -> 56455.94185 | H40: =(VLOOKUP($I$18,Tablas!$A$1428:$G$1494,4,TRUE))*1.1494 -> 36424.81933
E41: Prima para conyuge | G41: =(IF($F$18=1,0,(VLOOKUP($I$20,Tablas!$A$1428:$G$1494,3,TRUE))))*1.1494 -> 93162.81244 | H41: =(IF($F$18=1,0,(VLOOKUP($I$20,Tablas!$A$1428:$G$1494,4,TRUE))))*1.1494 -> 60106.76958
E42: Prima para hijo (s) | G42: =G31*Tablas!K4 -> 5913.938856 | H42: =H31*Tablas!K4 -> 3817.134412
E43: Total de Prima neta | G43: =(SUM(G40:G42)) -> 155532.6931 | H43: =(SUM(H40:H42)) -> 100348.7233
E44: Costo administrativo annual | G44: 86 | H44: 86
E45: Impuesto (14.49%) | G45: =(G44)*0% -> 0 | H45: =(H44)*0% -> 0
E46: TOTAL de primera cuota | G46: =SUM(G43:G45) -> 155618.6931 | H46: =SUM(H43:H45) -> 100434.7233
E47: Costo de segunda cuota | G47: =G43+G45 -> 155532.6931 | H47: =H43+H45 -> 100348.7233
E48: TOTAL ANUAL | G48: =G46+G47 -> 311151.3863 | H48: =H46+H47 -> 200783.4466
E49: Ahorros en tarifas de prima para niños | G49: =G37*Tablas!K4*2 -> 16553.91167 | H49: =H37*Tablas!K4*2 -> 10682.61555
E51: Tarifas Trimestrales
E52: Prima para Asegurado Titular | G52: =(VLOOKUP($I$18,Tablas!$A$1054:$G$1120,3,TRUE))*1.1494 -> 29293.17738 | H52: =(VLOOKUP($I$18,Tablas!$A$1054:$G$1120,4,TRUE))*1.1494 -> 18899.67041
E53: Prima para conyuge | G53: =(IF($F$18=1,0,(VLOOKUP($I$20,Tablas!$A$1054:$G$1120,3,TRUE))))*1.1494 -> 48339.19514 | H53: =(IF($F$18=1,0,(VLOOKUP($I$20,Tablas!$A$1054:$G$1120,4,TRUE))))*1.1494 -> 31187.47478
E54: Prima para hijo (s) | G54: =G31*Tablas!K3 -> 3068.55318 | H54: =H31*Tablas!K3 -> 1980.58861
E55: Total de Prima neta | G55: =(SUM(G52:G54)) -> 80700.92569 | H55: =(SUM(H52:H54)) -> 52067.7338
E56: Costo administrativo annual | G56: 86 | H56: 86
E57: Impuesto (14.49%) | G57: =(G56)*0% -> 0 | H57: =(H56)*0% -> 0
E59: TOTAL de primera cuota | G59: =SUM(G55:G57) -> 80786.92569 | H59: =SUM(H55:H57) -> 52153.7338
E60: Tres (3) cuotas adicionales, cada una de: | G60: =G55+G57 -> 80700.92569 | H60: =H55+H57 -> 52067.7338
E61: TOTAL ANUAL | G61: =G59+(G60*3) -> 322889.7028 | H61: =H59+(H60*3) -> 208356.9352
E62: Ahorros en tarifas de prima para niños | G62: =G37*Tablas!K3*4 -> 17178.58758 | H62: =H37*Tablas!K3*4 -> 11085.73312
E66: Tarifas Mensuales
E67: Prima para Asegurado Titular | G67: =(VLOOKUP($I$18,Tablas!$A$979:$G$1045,3,TRUE))*1.1494 -> 9941.926867 | H67: =(VLOOKUP($I$18,Tablas!$A$979:$G$1045,4,TRUE))*1.1494 -> 6414.433592
E68: Prima para conyuge | G68: =(IF($F$18=1,0,(VLOOKUP($I$20,Tablas!$A$979:$G$1045,3,TRUE))))*1.1494 -> 16406.02986 | H68: =(IF($F$18=1,0,(VLOOKUP($I$20,Tablas!$A$979:$G$1045,4,TRUE))))*1.1494 -> 10584.83993
E69: Prima para hijo (s) | G69: =G31*Tablas!K2 -> 1041.448352 | H69: =H31*Tablas!K2 -> 672.1997707
E70: Total de Prima neta | G70: =(SUM(G67:G69)) -> 27389.40508 | H70: =(SUM(H67:H69)) -> 17671.47329
E71: Costo administrativo anual | G71: 86 | H71: 86
E72: Impuesto (14.49%) | G72: =(G71)*0% -> 0 | H72: =(H71)*0% -> 0
E74: TOTAL de primera cuota | G74: =SUM(G70:G72) -> 27475.40508 | H74: =SUM(H70:H72) -> 17757.47329
E75: Once (11) cuotas mensuales cada una de: | G75: =G70+G72 -> 27389.40508 | H75: =H70+H72 -> 17671.47329
E76: TOTAL ANUAL | G76: =G74+(G75*11) -> 328758.861 | H76: =H74+(H75*11) -> 212143.6795
E77: Ahorros en tarifas de prima para niños | G77: =G37*Tablas!K2*12 -> 17490.92554 | H77: =H37*Tablas!K2*12 -> 11287.2919
E80: Tarifas en US$ - Efectivas a partir del 1ro. de Enero de 2023
E81: Este presupuesto solamente tiene carácter informativo y en ningún momento expresa compromiso legal para suministrarle cobertura de seguro. La emisión de una póliza de seguro Bupa está sujeta a todas las evaluaciones de riesgo por parte de Bupa y a la recepción de todos los pagos de prima requeridos.

Sheet Global Elite Health Plan
A14: Bupa Global Elite Health Plan | D14: Nombre del Asegurado Titular: | F14: =+'INGRESO DE DATOS'!$D$15 -> JOHN DOE
E16: Cotizado por: | F16: =+'INGRESO DE DATOS'!$D$21 -> NOMBRE DE AGENTE
D18: Número de adultos en la póliza: | F18: =+'INGRESO DE DATOS'!$D$17 -> 2 | H18: Edad del Asegurado Titular: | I18: =+'INGRESO DE DATOS'!$D$19 -> 65
D20: Número de niños en la póliza: | F20: =+'INGRESO DE DATOS'!$H$17 -> 3 | H20: Edad del/la conyuge: | I20: =+'INGRESO DE DATOS'!$H$19 -> 71
D22: Número de niños menores de 10 años: | F22: =+'INGRESO DE DATOS'!$D$33 -> 2 | H22: Fecha de la cotización: | I22: =NOW() -> 2022-12-06T15:03:42.210
H23: FALSE
E24: Deducibles | G24: PLAN 1 | H24: PLAN 2 | I24: PLAN 3 | J24: PLAN 4 | K24: PLAN 5
E25: En el país de residencia | G25: 250 | H25: 2000 | I25: 3500 | J25: 5000 | K25: 10000
E26: Fuera del país de residencia | G26: 5000 | H26: 2000 | I26: 3500 | J26: 5000 | K26: 10000
E28: Tarifas Anuales
E29: Prima para Asegurado Titular | G29: =(VLOOKUP($I$18,Tablas!$A$6:$G$72,3,TRUE))*1.1494 -> 45946.1156 | H29: =(VLOOKUP($I$18,Tablas!$A$6:$G$72,4,TRUE))*1.1494 -> 40276.1254 | I29: =(VLOOKUP($I$18,Tablas!$A$6:$G$72,5,TRUE))*1.1494 -> 32409.6318 | J29: =(VLOOKUP($I$18,Tablas!$A$6:$G$72,6,TRUE))*1.1494 -> 28105.1288 | K29: =(VLOOKUP($I$18,Tablas!$A$6:$G$72,7,TRUE))*1.1494 -> 21408.7244
E30: Prima para conyuge | G30: =(IF($F$18=1,0,(VLOOKUP($I$20,Tablas!$A$6:$G$72,3,TRUE))))*1.1494 -> 76461.5362 | H30: =(IF($F$18=1,0,(VLOOKUP($I$20,Tablas!$A$6:$G$72,4,TRUE))))*1.1494 -> 67020.3646 | I30: =(IF($F$18=1,0,(VLOOKUP($I$20,Tablas!$A$6:$G$72,5,TRUE))))*1.1494 -> 54122.9472 | J30: =(IF($F$18=1,0,(VLOOKUP($I$20,Tablas!$A$6:$G$72,6,TRUE))))*1.1494 -> 46932.3008 | K30: =(IF($F$18=1,0,(VLOOKUP($I$20,Tablas!$A$6:$G$72,7,TRUE))))*1.1494 -> 35746.34
E31: Prima para hijo (s) | G31: =(IF(('INGRESO DE DATOS'!H17 - 'INGRESO DE DATOS'!D33)<=0,0,IF(('INGRESO DE DATOS'!H17 - 'INGRESO DE DATOS'!D33)=Tablas!A73,Tablas!C73,IF(('INGRESO DE DATOS'!H17 - 'INGRESO DE DATOS'!D33)=Tablas!A74,Tablas!C74,Tablas!C75))))*1.1494 -> 4836.6752 | H31: =(IF(('INGRESO DE DATOS'!H17 - 'INGRESO DE DATOS'!D33)<=0,0,IF(('INGRESO DE DATOS'!H17 - 'INGRESO DE DATOS'!D33)=Tablas!A73,Tablas!D73,IF(('INGRESO DE DATOS'!H17 - 'INGRESO DE DATOS'!D33)=Tablas!A74,Tablas!D74,Tablas!D75))))*1.1494 -> 4238.9872 | I31: =(IF(('INGRESO DE DATOS'!H17 - 'INGRESO DE DATOS'!D33)<=0,0,IF(('INGRESO DE DATOS'!H17 - 'INGRESO DE DATOS'!D33)=Tablas!A73,Tablas!E73,IF(('INGRESO DE DATOS'!H17 - 'INGRESO DE DATOS'!D33)=Tablas!A74,Tablas!E74,Tablas!E75))))*1.1494 -> 3544.7496 | J31: =(IF(('INGRESO DE DATOS'!H17 - 'INGRESO DE DATOS'!D33)<=0,0,IF(('INGRESO DE DATOS'!H17 - 'INGRESO DE DATOS'!D33)=Tablas!A73,Tablas!F73,IF(('INGRESO DE DATOS'!H17 - 'INGRESO DE DATOS'!D33)=Tablas!A74,Tablas!F74,Tablas!F75))))*1.1494 -> 3074.645 | K31: =(IF(('INGRESO DE DATOS'!H17 - 'INGRESO DE DATOS'!D33)<=0,0,IF(('INGRESO DE DATOS'!H17 - 'INGRESO DE DATOS'!D33)=Tablas!A73,Tablas!G73,IF(('INGRESO DE DATOS'!H17 - 'INGRESO DE DATOS'!D33)=Tablas!A74,Tablas!G74,Tablas!G75))))*1.1494 -> 2342.4772
E32: Total de Prima neta | G32: =(SUM(G29:G31)) -> 127244.327 | H32: =(SUM(H29:H31)) -> 111535.4772 | I32: =(SUM(I29:I31)) -> 90077.3286 | J32: =(SUM(J29:J31)) -> 78112.0746 | K32: =(SUM(K29:K31)) -> 59497.5416
E33: Costo Administrativo Anual | G33: 86 | H33: 86 | I33: 86 | J33: 86 | K33: 86
E34: IVA (14.49%) | G34: =(G33)*0% -> 0 | H34: =(H33)*0% -> 0 | I34: =(I33)*0% -> 0 | J34: =(J33)*0% -> 0 | K34: =(K33)*0% -> 0
E36: TOTAL ANUAL | G36: =SUM(G32:G34) -> 127330.327 | H36: =SUM(H32:H34) -> 111621.4772 | I36: =SUM(I32:I34) -> 90163.3286 | J36: =SUM(J32:J34) -> 78198.0746 | K36: =SUM(K32:K34) -> 59583.5416
E37: Ahorros en tarifas de prima para niños | G37: =(IF(('INGRESO DE DATOS'!H17 - 'INGRESO DE DATOS'!D33) < 0, NA(), (IF('INGRESO DE DATOS'!H17<=0,0,IF('INGRESO DE DATOS'!H17=Tablas!A73,Tablas!C73,IF('INGRESO DE DATOS'!H17=Tablas!A74,Tablas!C74,Tablas!C75))) - IF(('INGRESO DE DATOS'!H17 - 'INGRESO DE DATOS'!D33)<=0,0,IF(('INGRESO DE DATOS'!H17 - 'INGRESO DE DATOS'!D33)=Tablas!A73,Tablas!C73,IF(('INGRESO DE DATOS'!H17 - 'INGRESO DE DATOS'!D33)=Tablas!A74,Tablas!C74,Tablas!C75))))))*1.1494 -> 6765.3684 | H37: =(IF(('INGRESO DE DATOS'!H17 - 'INGRESO DE DATOS'!D33) < 0, NA(), (IF('INGRESO DE DATOS'!H17<=0,0,IF('INGRESO DE DATOS'!H17=Tablas!A73,Tablas!D73,IF('INGRESO DE DATOS'!H17=Tablas!A74,Tablas!D74,Tablas!D75))) - IF(('INGRESO DE DATOS'!H17 - 'INGRESO DE DATOS'!D33)<=0,0,IF(('INGRESO DE DATOS'!H17 - 'INGRESO DE DATOS'!D33)=Tablas!A73,Tablas!D73,IF(('INGRESO DE DATOS'!H17 - 'INGRESO DE DATOS'!D33)=Tablas!A74,Tablas!D74,Tablas!D75))))))*1.1494 -> 5929.7546 | I37: =(IF(('INGRESO DE DATOS'!H17 - 'INGRESO DE DATOS'!D33) < 0, NA(), (IF('INGRESO DE DATOS'!H17<=0,0,IF('INGRESO DE DATOS'!H17=Tablas!A73,Tablas!E73,IF('INGRESO DE DATOS'!H17=Tablas!A74,Tablas!E74,Tablas!E75))) - IF(('INGRESO DE DATOS'!H17 - 'INGRESO DE DATOS'!D33)<=0,0,IF(('INGRESO DE DATOS'!H17 - 'INGRESO DE DATOS'!D33)=Tablas!A73,Tablas!E73,IF(('INGRESO DE DATOS'!H17 - 'INGRESO DE DATOS'!D33)=Tablas!A74,Tablas!E74,Tablas!E75))))))*1.1494 -> 4960.8104 | J37: =(IF(('INGRESO DE DATOS'!H17 - 'INGRESO DE DATOS'!D33) < 0, NA(), (IF('INGRESO DE DATOS'!H17<=0,0,IF('INGRESO DE DATOS'!H17=Tablas!A73,Tablas!F73,IF('INGRESO DE DATOS'!H17=Tablas!A74,Tablas!F74,Tablas!F75))) - IF(('INGRESO DE DATOS'!H17 - 'INGRESO DE DATOS'!D33)<=0,0,IF(('INGRESO DE DATOS'!H17 - 'INGRESO DE DATOS'!D33)=Tablas!A73,Tablas!F73,IF(('INGRESO DE DATOS'!H17 - 'INGRESO DE DATOS'!D33)=Tablas!A74,Tablas!F74,Tablas!F75))))))*1.1494 -> 4301.0548 | K37: =(IF(('INGRESO DE DATOS'!H17 - 'INGRESO DE DATOS'!D33) < 0, NA(), (IF('INGRESO DE DATOS'!H17<=0,0,IF('INGRESO DE DATOS'!H17=Tablas!A73,Tablas!G73,IF('INGRESO DE DATOS'!H17=Tablas!A74,Tablas!G74,Tablas!G75))) - IF(('INGRESO DE DATOS'!H17 - 'INGRESO DE DATOS'!D33)<=0,0,IF(('INGRESO DE DATOS'!H17 - 'INGRESO DE DATOS'!D33)=Tablas!A73,Tablas!G73,IF(('INGRESO DE DATOS'!H17 - 'INGRESO DE DATOS'!D33)=Tablas!A74,Tablas!G74,Tablas!G75))))))*1.1494 -> 3276.9394
E39: Tarifas Semianuales
E40: Prima para Asegurado Titular | G40: =(VLOOKUP($I$18,Tablas!$A$455:$G$521,3,TRUE))*1.1494 -> 24351.44127 | H40: =(VLOOKUP($I$18,Tablas!$A$455:$G$521,4,TRUE))*1.1494 -> 21346.34646 | I40: =(VLOOKUP($I$18,Tablas!$A$455:$G$521,5,TRUE))*1.1494 -> 17177.10485 | J40: =(VLOOKUP($I$18,Tablas!$A$455:$G$521,6,TRUE))*1.1494 -> 14895.71826 | K40: =(VLOOKUP($I$18,Tablas!$A$455:$G$521,7,TRUE))*1.1494 -> 11346.62393
E41: Prima para conyuge | G41: =(IF($F$18=1,0,(VLOOKUP($I$20,Tablas!$A$455:$G$521,3,TRUE))))*1.1494 -> 40524.61419 | H41: =(IF($F$18=1,0,(VLOOKUP($I$20,Tablas!$A$455:$G$521,4,TRUE))))*1.1494 -> 35520.79324 | I41: =(IF($F$18=1,0,(VLOOKUP($I$20,Tablas!$A$455:$G$521,5,TRUE))))*1.1494 -> 28685.16202 | J41: =(IF($F$18=1,0,(VLOOKUP($I$20,Tablas!$A$455:$G$521,6,TRUE))))*1.1494 -> 24874.11942 | K41: =(IF($F$18=1,0,(VLOOKUP($I$20,Tablas!$A$455:$G$521,7,TRUE))))*1.1494 -> 18945.5602
E42: Prima para hijo (s) | G42: =G31*Tablas!$K4 -> 2563.437856 | H42: =H31*Tablas!$K4 -> 2246.663216 | I42: =I31*Tablas!$K4 -> 1878.717288 | J42: =J31*Tablas!$K4 -> 1629.56185 | K42: =K31*Tablas!$K4 -> 1241.512916
E43: Total de Prima neta | G43: =(SUM(G40:G42)) -> 67439.49331 | H43: =(SUM(H40:H42)) -> 59113.80292 | I43: =(SUM(I40:I42)) -> 47740.98416 | J43: =(SUM(J40:J42)) -> 41399.39954 | K43: =(SUM(K40:K42)) -> 31533.69705
E44: Costo Administrativo Anual | G44: 86 | H44: 86 | I44: 86 | J44: 86 | K44: 86
E45: IVA (14.49%) | G45: =(G44)*0% -> 0 | H45: =(H44)*0% -> 0 | I45: =(I44)*0% -> 0 | J45: =(J44)*0% -> 0 | K45: =(K44)*0% -> 0
E46: TOTAL de primera cuota | G46: =SUM(G43:G45) -> 67525.49331 | H46: =SUM(H43:H45) -> 59199.80292 | I46: =SUM(I43:I45) -> 47826.98416 | J46: =SUM(J43:J45) -> 41485.39954 | K46: =SUM(K43:K45) -> 31619.69705
E47: Costo de segunda cuota | G47: =G43+G45 -> 67439.49331 | H47: =H43+H45 -> 59113.80292 | I47: =I43+I45 -> 47740.98416 | J47: =J43+J45 -> 41399.39954 | K47: =K43+K45 -> 31533.69705
E48: TOTAL ANUAL | G48: =G46+G47 -> 134964.9866 | H48: =H46+H47 -> 118313.6058 | I48: 95567.96832 | J48: =J46+J47 -> 82884.79908 | K48: 63153.3941
E49: Ahorros en tarifas de prima para niños | G49: =G37*Tablas!$K4*2 -> 7171.290504 | H49: =H37*Tablas!$K4*2 -> 6285.539876 | I49: =I37*Tablas!$K4*2 -> 5258.459024 | J49: =J37*Tablas!$K4*2 -> 4559.118088 | K49: =K37*Tablas!$K4*2 -> 3473.555764
E51: Tarifas Trimestrales
E52: Prima para Asegurado Titular | G52: =(VLOOKUP($I$18,Tablas!$A$680:$G$746,3,TRUE))*1.1494 -> 12635.18179 | H52: =(VLOOKUP($I$18,Tablas!$A$680:$G$746,4,TRUE))*1.1494 -> 11075.93449 | I52: =(VLOOKUP($I$18,Tablas!$A$680:$G$746,5,TRUE))*1.1494 -> 8912.648745 | J52: =(VLOOKUP($I$18,Tablas!$A$680:$G$746,6,TRUE))*1.1494 -> 7728.91042 | K52: =(VLOOKUP($I$18,Tablas!$A$680:$G$746,7,TRUE))*1.1494 -> 5887.39921
E53: Prima para conyuge | G53: =(IF($F$18=1,0,(VLOOKUP($I$20,Tablas!$A$680:$G$746,3,TRUE))))*1.1494 -> 21026.92245 | H53: =(IF($F$18=1,0,(VLOOKUP($I$20,Tablas!$A$680:$G$746,4,TRUE))))*1.1494 -> 18430.60027 | I53: =(IF($F$18=1,0,(VLOOKUP($I$20,Tablas!$A$680:$G$746,5,TRUE))))*1.1494 -> 14883.81048 | J53: =(IF($F$18=1,0,(VLOOKUP($I$20,Tablas!$A$680:$G$746,6,TRUE))))*1.1494 -> 12906.38272 | K53: =(IF($F$18=1,0,(VLOOKUP($I$20,Tablas!$A$680:$G$746,7,TRUE))))*1.1494 -> 9830.2435
E54: Prima para hijo (s) | G54: =G31*Tablas!$K3 -> 1330.08568 | H54: =H31*Tablas!$K3 -> 1165.72148 | I54: =I31*Tablas!$K3 -> 974.80614 | J54: =J31*Tablas!$K3 -> 845.527375 | K54: =K31*Tablas!$K3 -> 644.18123
E55: Total de Prima neta | G55: =(SUM(G52:G54)) -> 34992.18992 | H55: =(SUM(H52:H54)) -> 30672.25623 | I55: =(SUM(I52:I54)) -> 24771.26536 | J55: =(SUM(J52:J54)) -> 21480.82052 | K55: =(SUM(K52:K54)) -> 16361.82394
E56: Costo Administrativo Anual | G56: 86 | H56: 86 | I56: 86 | J56: 86 | K56: 86
E57: IVA (14.49%) | G57: =(G56)*0% -> 0 | H57: =(H56)*0% -> 0 | I57: =(I56)*0% -> 0 | J57: =(J56)*0% -> 0 | K57: =(K56)*0% -> 0
E59: TOTAL de primera cuota | G59: =SUM(G55:G57) -> 35078.18992 | H59: =SUM(H55:H57) -> 30758.25623 | I59: =SUM(I55:I57) -> 24857.26536 | J59: =SUM(J55:J57) -> 21566.82052 | K59: =SUM(K55:K57) -> 16447.82394
E60: Tres (3) cuotas adicionales, cada una de: | G60: =G55+G57 -> 34992.18992 | H60: =H55+H57 -> 30672.25623 | I60: =I55+I57 -> 24771.26536 | J60: =J55+J57 -> 21480.82052 | K60: =K55+K57 -> 16361.82394
E61: TOTAL ANUAL | G61: =G59+(G60*3) -> 140054.7597 | H61: =H59+(H60*3) -> 122775.0249 | I61: 99171.06146 | J61: =J59+(J60*3) -> 86009.28206 | K61: 65533.29576
E62: Ahorros en tarifas de prima para niños | G62: =G37*Tablas!$K3*4 -> 7441.90524 | H62: =H37*Tablas!$K3*4 -> 6522.73006 | I62: =I37*Tablas!$K3*4 -> 5456.89144 | J62: =J37*Tablas!$K3*4 -> 4731.16028 | K62: =K37*Tablas!$K3*4 -> 3604.63334
E65: Tarifas Mensuales
E66: Prima para Asegurado Titular | G66: =(VLOOKUP($I$18,Tablas!$A$80:$G$146,3,TRUE))*1.1494 -> 4288.304123 | H66: =(VLOOKUP($I$18,Tablas!$A$80:$G$146,4,TRUE))*1.1494 -> 3759.105037 | I66: =(VLOOKUP($I$18,Tablas!$A$80:$G$146,5,TRUE))*1.1494 -> 3024.898968 | J66: =(VLOOKUP($I$18,Tablas!$A$80:$G$146,6,TRUE))*1.1494 -> 2623.145355 | K66: =(VLOOKUP($I$18,Tablas!$A$80:$G$146,7,TRUE))*1.1494 -> 1998.147611
E67: Prima para conyuge | G67: =(IF($F$18=1,0,(VLOOKUP($I$20,Tablas!$A$80:$G$146,3,TRUE))))*1.1494 -> 7136.410045 | H67: =(IF($F$18=1,0,(VLOOKUP($I$20,Tablas!$A$80:$G$146,4,TRUE))))*1.1494 -> 6255.234029 | I67: =(IF($F$18=1,0,(VLOOKUP($I$20,Tablas!$A$80:$G$146,5,TRUE))))*1.1494 -> 5051.475072 | J67: =(IF($F$18=1,0,(VLOOKUP($I$20,Tablas!$A$80:$G$146,6,TRUE))))*1.1494 -> 4380.348075 | K67: =(IF($F$18=1,0,(VLOOKUP($I$20,Tablas!$A$80:$G$146,7,TRUE))))*1.1494 -> 3336.325067
E68: Prima para hijo (s) | G68: =G31*Tablas!$K2 -> 451.4230187 | H68: =H31*Tablas!$K2 -> 395.6388053 | I68: =I31*Tablas!$K2 -> 330.843296 | J68: =J31*Tablas!$K2 -> 286.9668667 | K68: =K31*Tablas!$K2 -> 218.6312053
E69: Total de Prima neta | G69: =(SUM(G66:G68)) -> 11876.13719 | H69: =(SUM(H66:H68)) -> 10409.97787 | I69: =(SUM(I66:I68)) -> 8407.217336 | J69: =(SUM(J66:J68)) -> 7290.460296 | K69: =(SUM(K66:K68)) -> 5553.103883
E70: Costo Administrativo Anual | G70: 86 | H70: 86 | I70: 86 | J70: 86 | K70: 86
E71: IVA (14.49%) | G71: =(G70)*0% -> 0 | H71: =(H70)*0% -> 0 | I71: =(I70)*0% -> 0 | J71: =(J70)*0% -> 0 | K71: =(K70)*0% -> 0
E73: TOTAL de primera cuota | G73: =SUM(G69:G71) -> 11962.13719 | H73: =SUM(H69:H71) -> 10495.97787 | I73: =SUM(I69:I71) -> 8493.217336 | J73: =SUM(J69:J71) -> 7376.460296 | K73: =SUM(K69:K71) -> 5639.103883
E74: Once (11) cuotas mensuales cada una de: | G74: =G69+G71 -> 11876.13719 | H74: =H69+H71 -> 10409.97787 | I74: =I69+I71 -> 8407.217336 | J74: =J69+J71 -> 7290.460296 | K74: =K69+K71 -> 5553.103883
E75: TOTAL ANUAL | G75: =G73+(G74*11) -> 142599.6462 | H75: =H73+(H74*11) -> 125005.7345 | I75: =I73+(I74*11) -> 100972.608 | J75: =J73+(J74*11) -> 87571.52355 | K75: =K73+(K74*11) -> 66723.24659
E76: Ahorros en tarifas de prima para niños | G76: =G37*Tablas!$K2*12 -> 7577.212608 | H76: =H37*Tablas!$K2*12 -> 6641.325152 | I76: =I37*Tablas!$K2*12 -> 5556.107648 | J76: =J37*Tablas!$K2*12 -> 4817.181376 | K76: =K37*Tablas!$K2*12 -> 3670.172128
E79: Tarifas en US$ - Efectivas a partir del 1ro. de Enero de 2023
E80: Este presupuesto solamente tiene carácter informativo y en ningún momento expresa compromiso legal para suministrarle cobertura de seguro. La emisión de una póliza de seguro Bupa está sujeta a todas las evaluaciones de riesgo por parte de Bupa y a la recepción de todos los pagos de prima requeridos.

Sheet Global Premier Health Plan
A12: Global Premier Health Plan | D12: Nombre del Asegurado Titular: | F12: =+'INGRESO DE DATOS'!$D$15 -> JOHN DOE
E14: Cotizado por: | F14: =+'INGRESO DE DATOS'!$D$21 -> NOMBRE DE AGENTE
D16: Número de adultos en la póliza: | F16: =+'INGRESO DE DATOS'!$D$17 -> 2 | H16: Edad del Asegurado Titular: | I16: =+'INGRESO DE DATOS'!$D$19 -> 65
D18: Número de niños en la póliza: | F18: =+'INGRESO DE DATOS'!$H$17 -> 3 | H18: Edad del/la conyuge: | I18: =+'INGRESO DE DATOS'!$H$19 -> 71
E20: Fecha de la cotización: | F20: =NOW() -> 2022-12-06T15:03:42.210
H21: FALSE
E22: Deducibles | G22: PLAN 1 | H22: PLAN 2 | I22: PLAN 3 | J22: PLAN 4
E23: En el país de residencia | G23: 250 | H23: 2000 | I23: 5000 | J23: 10000
E24: Fuera del país de residencia | G24: 5000 | H24: 2000 | I24: 5000 | J24: 10000
E26: Tarifas Anuales
E27: Prima para Asegurado Titular | G27: =(VLOOKUP($I$16,Tablas!$A$155:$G$221,3,TRUE))*1.1494 -> 30198.1862 | H27: =(VLOOKUP($I$16,Tablas!$A$155:$G$221,4,TRUE))*1.1494 -> 27406.2936 | I27: =(VLOOKUP($I$16,Tablas!$A$155:$G$221,5,TRUE))*1.1494 -> 19511.065 | J27: =(VLOOKUP($I$16,Tablas!$A$155:$G$221,6,TRUE))*1.1494 -> 14254.8588
E28: Prima para conyuge | G28: =(IF($F$16=1,0,(VLOOKUP($I$18,Tablas!$A$155:$G$221,3,TRUE))))*1.1494 -> 50255.2162 | H28: =(IF($F$16=1,0,(VLOOKUP($I$18,Tablas!$A$155:$G$221,4,TRUE))))*1.1494 -> 45605.8932 | I28: =(IF($F$16=1,0,(VLOOKUP($I$18,Tablas!$A$155:$G$221,5,TRUE))))*1.1494 -> 32665.948 | J28: =(IF($F$16=1,0,(VLOOKUP($I$18,Tablas!$A$155:$G$221,6,TRUE))))*1.1494 -> 23864.9922
E29: Prima para hijo (s) | G29: =(IF($F$18=0,0,(VLOOKUP($F$18,Tablas!$A$222:$G$224,3,TRUE))))*1.1494 -> 7623.9702 | H29: =(IF($F$18=0,0,(VLOOKUP($F$18,Tablas!$A$222:$G$224,4,TRUE))))*1.1494 -> 6919.388 | I29: =(IF($F$18=0,0,(VLOOKUP($F$18,Tablas!$A$222:$G$224,5,TRUE))))*1.1494 -> 5267.7002 | J29: =(IF($F$18=0,0,(VLOOKUP($F$18,Tablas!$A$222:$G$224,6,TRUE))))*1.1494 -> 3848.1912
E30: Total de Prima neta | G30: =(SUM(G27:G29)) -> 88077.3726 | H30: =(SUM(H27:H29)) -> 79931.5748 | I30: =(SUM(I27:I29)) -> 57444.7132 | J30: =(SUM(J27:J29)) -> 41968.0422
E31: Costo Administrativo Anual | G31: 86 | H31: 86 | I31: 86 | J31: 86
E32: IVA (14.49%) | G32: =(G31)*0% -> 0 | H32: =(H31)*0% -> 0 | I32: =(I31)*0% -> 0 | J32: =(J31)*0% -> 0
E34: TOTAL ANUAL | G34: =SUM(G30:G32) -> 88163.3726 | H34: =SUM(H30:H32) -> 80017.5748 | I34: =SUM(I30:I32) -> 57530.7132 | J34: =SUM(J30:J32) -> 42054.0422
E36: Tarifas Semianuales
E37: Prima para Asegurado Titular | G37: =(VLOOKUP($I$16,Tablas!$A$530:$G$596,3,TRUE))*1.1494 -> 16005.03869 | H37: =(VLOOKUP($I$16,Tablas!$A$530:$G$596,4,TRUE))*1.1494 -> 14525.33561 | I37: =(VLOOKUP($I$16,Tablas!$A$530:$G$596,5,TRUE))*1.1494 -> 10340.86445 | J37: =(VLOOKUP($I$16,Tablas!$A$530:$G$596,6,TRUE))*1.1494 -> 7555.075164
E38: Prima para conyuge | G38: =(IF($F$16=1,0,(VLOOKUP($I$18,Tablas!$A$530:$G$596,3,TRUE))))*1.1494 -> 26635.26459 | H38: =(IF($F$16=1,0,(VLOOKUP($I$18,Tablas!$A$530:$G$596,4,TRUE))))*1.1494 -> 24171.1234 | I38: =(IF($F$16=1,0,(VLOOKUP($I$18,Tablas!$A$530:$G$596,5,TRUE))))*1.1494 -> 17312.95244 | J38: =(IF($F$16=1,0,(VLOOKUP($I$18,Tablas!$A$530:$G$596,6,TRUE))))*1.1494 -> 12648.44587
E39: Prima para hijo (s) | G39: =(IF($F$18=0,0,(VLOOKUP($F$18,Tablas!$A$597:$G$599,3,TRUE))))*1.1494 -> 4040.704206 | H39: =(IF($F$18=0,0,(VLOOKUP($F$18,Tablas!$A$597:$G$599,4,TRUE))))*1.1494 -> 3667.27564 | I39: =(IF($F$18=0,0,(VLOOKUP($F$18,Tablas!$A$597:$G$599,5,TRUE))))*1.1494 -> 2791.881106 | J39: =(IF($F$18=0,0,(VLOOKUP($F$18,Tablas!$A$597:$G$599,6,TRUE))))*1.1494 -> 2039.541336
E40: Total de Prima neta | G40: =(SUM(G37:G39)) -> 46681.00748 | H40: =(SUM(H37:H39)) -> 42363.73464 | I40: =(SUM(I37:I39)) -> 30445.698 | J40: =(SUM(J37:J39)) -> 22243.06237
E41: Costo Administrativo Anual | G41: 86 | H41: 86 | I41: 86 | J41: 86
E42: IVA (14.49%) | G42: =(G41)*0% -> 0 | H42: =(H41)*0% -> 0 | I42: =(I41)*0% -> 0 | J42: =(J41)*0% -> 0
E43: TOTAL de primera cuota | G43: =SUM(G40:G42) -> 46767.00748 | H43: =SUM(H40:H42) -> 42449.73464 | I43: =SUM(I40:I42) -> 30531.698 | J43: =SUM(J40:J42) -> 22329.06237
E44: Costo de segunda cuota | G44: =G40+G42 -> 46681.00748 | H44: =H40+H42 -> 42363.73464 | I44: =I40+I42 -> 30445.698 | J44: =J40+J42 -> 22243.06237
E45: TOTAL ANUAL | G45: =G43+G44 -> 93448.01496 | H45: =H43+H44 -> 84813.46929 | I45: 60977.39599 | J45: =J43+J44 -> 44572.12473
E47: Tarifas Trimestrales
E48: Prima para Asegurado Titular | G48: =(VLOOKUP($I$16,Tablas!$A$755:$G$821,3,TRUE))*1.1494 -> 8304.501205 | H48: =(VLOOKUP($I$16,Tablas!$A$755:$G$821,4,TRUE))*1.1494 -> 7536.73074 | I48: =(VLOOKUP($I$16,Tablas!$A$755:$G$821,5,TRUE))*1.1494 -> 5365.542875 | J48: =(VLOOKUP($I$16,Tablas!$A$755:$G$821,6,TRUE))*1.1494 -> 3920.08617
E49: Prima para conyuge | G49: =(IF($F$16=1,0,(VLOOKUP($I$18,Tablas!$A$755:$G$821,3,TRUE))))*1.1494 -> 13820.18446 | H49: =(IF($F$16=1,0,(VLOOKUP($I$18,Tablas!$A$755:$G$821,4,TRUE))))*1.1494 -> 12541.62063 | I49: =(IF($F$16=1,0,(VLOOKUP($I$18,Tablas!$A$755:$G$821,5,TRUE))))*1.1494 -> 8983.1357 | J49: =(IF($F$16=1,0,(VLOOKUP($I$18,Tablas!$A$755:$G$821,6,TRUE))))*1.1494 -> 6562.872855
E50: Prima para hijo (s) | G50: =(IF($F$18=0,0,(VLOOKUP($F$18,Tablas!$A$822:$G$824,3,TRUE))))*1.1494 -> 2096.591805 | H50: =(IF($F$18=0,0,(VLOOKUP($F$18,Tablas!$A$822:$G$824,4,TRUE))))*1.1494 -> 1902.8317 | I50: =(IF($F$18=0,0,(VLOOKUP($F$18,Tablas!$A$822:$G$824,5,TRUE))))*1.1494 -> 1448.617555 | J50: =(IF($F$18=0,0,(VLOOKUP($F$18,Tablas!$A$822:$G$824,6,TRUE))))*1.1494 -> 1058.25258
E51: Total de Prima neta | G51: =(SUM(G48:G50)) -> 24221.27747 | H51: =(SUM(H48:H50)) -> 21981.18307 | I51: =(SUM(I48:I50)) -> 15797.29613 | J51: =(SUM(J48:J50)) -> 11541.21161
E52: Costo Administrativo Anual | G52: 86 | H52: 86 | I52: 86 | J52: 86
E53: IVA (14.49%) | G53: =(G52)*0% -> 0 | H53: =(H52)*0% -> 0 | I53: =(I52)*0% -> 0 | J53: =(J52)*0% -> 0
E55: TOTAL de primera cuota | G55: =SUM(G51:G53) -> 24307.27747 | H55: =SUM(H51:H53) -> 22067.18307 | I55: =SUM(I51:I53) -> 15883.29613 | J55: =SUM(J51:J53) -> 11627.21161
E56: Tres (3) cuotas adicionales, cada una de: | G56: =G51+G53 -> 24221.27747 | H56: =H51+H53 -> 21981.18307 | I56: =I51+I53 -> 15797.29613 | J56: =J51+J53 -> 11541.21161
E57: TOTAL ANUAL | G57: =G55+(G56*3) -> 96971.10986 | H57: =H55+(H56*3) -> 88010.73228 | I57: 63275.18452 | J57: =J55+(J56*3) -> 46250.84642
E60: Tarifas Mensuales
E61: Prima para Asegurado Titular | G61: =(VLOOKUP($I$16,Tablas!$A$229:$G$295,3,TRUE))*1.1494 -> 2818.497379 | H61: =(VLOOKUP($I$16,Tablas!$A$229:$G$295,4,TRUE))*1.1494 -> 2557.920736 | I61: =(VLOOKUP($I$16,Tablas!$A$229:$G$295,5,TRUE))*1.1494 -> 1821.032733 | J61: =(VLOOKUP($I$16,Tablas!$A$229:$G$295,6,TRUE))*1.1494 -> 1330.453488
E62: Prima para conyuge | G62: =(IF($F$16=1,0,(VLOOKUP($I$18,Tablas!$A$229:$G$295,3,TRUE))))*1.1494 -> 4690.486845 | H62: =(IF($F$16=1,0,(VLOOKUP($I$18,Tablas!$A229:$G$295,4,TRUE))))*1.1494 -> 4256.550032 | I62: =(IF($F$16=1,0,(VLOOKUP($I$18,Tablas!$A$229:$G$295,5,TRUE))))*1.1494 -> 3048.821813 | J62: =(IF($F$16=1,0,(VLOOKUP($I$18,Tablas!$A$229:$G$295,6,TRUE))))*1.1494 -> 2227.399272
E63: Prima para hijo (s) | G63: =(IF($F$18=0,0,(VLOOKUP($F$18,Tablas!$A$296:$G$298,3,TRUE))))*1.1494 -> 711.570552 | H63: =(IF($F$18=0,0,(VLOOKUP($F$18,Tablas!$A$296:$G$298,4,TRUE))))*1.1494 -> 645.8095467 | I63: =(IF($F$18=0,0,(VLOOKUP($F$18,Tablas!$A$296:$G$298,5,TRUE))))*1.1494 -> 491.6520187 | J63: =(IF($F$18=0,0,(VLOOKUP($F$18,Tablas!$A$296:$G$298,6,TRUE))))*1.1494 -> 359.164512
E64: Total de Prima neta | G64: =SUM(G61:G63) -> 8220.554776 | H64: =SUM(H61:H63) -> 7460.280315 | I64: =SUM(I61:I63) -> 5361.506565 | J64: =SUM(J61:J63) -> 3917.017272
E65: Costo Administrativo Anual | G65: 86 | H65: 86 | I65: 86 | J65: 86
E66: IVA (14.49%) | G66: =(G65)*0% -> 0 | H66: =(H65)*0% -> 0 | I66: =(I65)*0% -> 0 | J66: =(J65)*0% -> 0
E68: TOTAL de primera cuota | G68: =SUM(G64:G66) -> 8306.554776 | H68: =SUM(H64:H66) -> 7546.280315 | I68: =SUM(I64:I66) -> 5447.506565 | J68: =SUM(J64:J66) -> 4003.017272
E69: Once (11) cuotas mensuales cada una de: | G69: =G64+G66 -> 8220.554776 | H69: =H64+H66 -> 7460.280315 | I69: =I64+I66 -> 5361.506565 | J69: =J64+J66 -> 3917.017272
E70: TOTAL ANUAL | G70: =G68+(G69*11) -> 98732.65731 | H70: =H68+(H69*11) -> 89609.36378 | I70: =I68+(I69*11) -> 64424.07878 | J70: =J68+(J69*11) -> 47090.20726
E73: Tarifas en US$ - Efectivas a partir del 1ro. de Enero de 2023
E74: Este presupuesto solamente tiene carácter informativo y en ningún momento expresa compromiso legal para suministrarle cobertura de seguro. La emisión de una póliza de seguro Bupa está sujeta a todas las evaluaciones de riesgo por parte de Bupa y a la recepción de todos los pagos de prima requeridos.

Sheet Global Select Health Plan
A12: Global Select Health Plan | D12: Nombre del Asegurado Titular: | F12: =+'INGRESO DE DATOS'!$D$15 -> JOHN DOE
E14: Cotizado por: | F14: =+'INGRESO DE DATOS'!$D$21 -> NOMBRE DE AGENTE
D16: Número de adultos en la póliza: | F16: =+'INGRESO DE DATOS'!$D$17 -> 2 | H16: Edad del Asegurado Titular: | I16: =+'INGRESO DE DATOS'!$D$19 -> 65
E18: Número de niños en la póliza: | F18: =+'INGRESO DE DATOS'!$H$17 -> 3 | H18: Edad del/la conyuge: | I18: =+'INGRESO DE DATOS'!$H$19 -> 71
E20: Fecha de la cotización: | F20: =NOW() -> 2022-12-06T15:03:42.210
E22: Deducibles | G22: PLAN 1 | H22: PLAN 2 | I22: PLAN 3 | J22: PLAN 4
E23: En el país de residencia | G23: 250 | H23: 2000 | I23: 5000 | J23: 10000
E24: Fuera del país de residencia | G24: 5000 | H24: 2000 | I24: 5000 | J24: 10000
E26: Tarifas Anuales
E27: Prima para Asegurado Titular | G27: =(VLOOKUP($I$16,Tablas!$A$305:$G$371,3,TRUE))*1.1494 -> 21455.8498 | H27: =(VLOOKUP($I$16,Tablas!$A$305:$G$371,4,TRUE))*1.1494 -> 20588.0528 | I27: =(VLOOKUP($I$16,Tablas!$A$305:$G$371,5,TRUE))*1.1494 -> 14687.0332 | J27: =(VLOOKUP($I$16,Tablas!$A$305:$G$371,6,TRUE))*1.1494 -> 10726.2008
E28: Prima para conyuge | G28: =(IF($F$16=1,0,(VLOOKUP($I$18,Tablas!$A$305:$G$371,3,TRUE))))*1.1494 -> 36342.8786 | H28: =(IF($F$16=1,0,(VLOOKUP($I$18,Tablas!$A$305:$G$371,4,TRUE))))*1.1494 -> 34869.3478 | I28: =(IF($F$16=1,0,(VLOOKUP($I$18,Tablas!$A$305:$G$371,5,TRUE))))*1.1494 -> 25030.4838 | J28: =(IF($F$16=1,0,(VLOOKUP($I$18,Tablas!$A$305:$G$371,6,TRUE))))*1.1494 -> 18276.6094
E29: Prima para hijo (s) | G29: =(IF($F$18=0,0,(VLOOKUP($F$18,Tablas!$A$372:$G$374,3,TRUE))))*1.1494 -> 5333.216 | H29: =(IF($F$18=0,0,(VLOOKUP($F$18,Tablas!$A$372:$G$374,4,TRUE))))*1.1494 -> 5114.83 | I29: =(IF($F$18=0,0,(VLOOKUP($F$18,Tablas!$A$372:$G$374,5,TRUE))))*1.1494 -> 3917.1552 | J29: =(IF($F$18=0,0,(VLOOKUP($F$18,Tablas!$A$372:$G$374,6,TRUE))))*1.1494 -> 2860.8566
E30: Total de Prima neta | G30: =(SUM(G27:G29)) -> 63131.9444 | H30: =(SUM(H27:H29)) -> 60572.2306 | I30: =(SUM(I27:I29)) -> 43634.6722 | J30: =(SUM(J27:J29)) -> 31863.6668
E31: Costo Administrativo Anual | G31: 86 | H31: 86 | I31: 86 | J31: 86
E32: IVA (14.49%) | G32: =(G31)*0% -> 0 | H32: =(H31)*0% -> 0 | I32: =(I31)*0% -> 0 | J32: =(J31)*0% -> 0
E34: TOTAL ANUAL | G34: =SUM(G30:G32) -> 63217.9444 | H34: =SUM(H30:H32) -> 60658.2306 | I34: =SUM(I30:I32) -> 43720.6722 | J34: =SUM(J30:J32) -> 31949.6668
E36: Tarifas Semianuales
E37: Prima para Asegurado Titular | G37: =(VLOOKUP($I$16,Tablas!$A$605:$G$671,3,TRUE))*1.1494 -> 11371.60039 | H37: =(VLOOKUP($I$16,Tablas!$A$605:$G$671,4,TRUE))*1.1494 -> 10911.66798 | I37: =(VLOOKUP($I$16,Tablas!$A$605:$G$671,5,TRUE))*1.1494 -> 7784.127596 | J37: =(VLOOKUP($I$16,Tablas!$A$605:$G$671,6,TRUE))*1.1494 -> 5684.886424
E38: Prima para conyuge | G38: =(IF($F$16=1,0,(VLOOKUP($I$18,Tablas!$A$605:$G$671,3,TRUE))))*1.1494 -> 19261.72566 | H38: =(IF($F$16=1,0,(VLOOKUP($I$18,Tablas!$A$605:$G$671,4,TRUE))))*1.1494 -> 18480.75433 | I38: =(IF($F$16=1,0,(VLOOKUP($I$18,Tablas!$A$605:$G$671,5,TRUE))))*1.1494 -> 13266.15641 | J38: =(IF($F$16=1,0,(VLOOKUP($I$18,Tablas!$A$605:$G$671,6,TRUE))))*1.1494 -> 9686.602982
E39: Prima para hijo (s) | G39: =(IF($F$18=0,0,(VLOOKUP($F$18,Tablas!$A$672:$G$674,3,TRUE))))*1.1494 -> 2826.60448 | H39: =(IF($F$18=0,0,(VLOOKUP($F$18,Tablas!$A$672:$G$674,4,TRUE))))*1.1494 -> 2710.8599 | I39: =(IF($F$18=0,0,(VLOOKUP($F$18,Tablas!$A$672:$G$674,5,TRUE))))*1.1494 -> 2076.092256 | J39: =(IF($F$18=0,0,(VLOOKUP($F$18,Tablas!$A$672:$G$674,6,TRUE))))*1.1494 -> 1516.253998
E40: Total de Prima neta | G40: =(SUM(G37:G39)) -> 33459.93053 | H40: =(SUM(H37:H39)) -> 32103.28222 | I40: =(SUM(I37:I39)) -> 23126.37627 | J40: =(SUM(J37:J39)) -> 16887.7434
E41: Costo Administrativo Anual | G41: 86 | H41: 86 | I41: 86 | J41: 86
E42: IVA (14.49%) | G42: =(G41)*0% -> 0 | H42: =(H41)*0% -> 0 | I42: =(I41)*0% -> 0
E43: TOTAL de primera cuota | G43: =SUM(G40:G42) -> 33545.93053 | H43: =SUM(H40:H42) -> 32189.28222 | I43: =SUM(I40:I42) -> 23212.37627 | J43: =SUM(J40:J42) -> 16973.7434
E44: Costo de segunda cuota | G44: =G40+G42 -> 33459.93053 | H44: =H40+H42 -> 32103.28222 | I44: =I40+I42 -> 23126.37627 | J44: =J40+J42 -> 16887.7434
E45: TOTAL ANUAL | G45: =G43+G44 -> 67005.86106 | H45: =H43+H44 -> 64292.56444 | I45: 46338.75253 | J45: 33861.48681
E47: Tarifas Trimestrales
E48: Prima para Asegurado Titular | G48: =(VLOOKUP($I$16,Tablas!$A$830:$G$896,3,TRUE))*1.1494 -> 5900.358695 | H48: =(VLOOKUP($I$16,Tablas!$A$830:$G$896,4,TRUE))*1.1494 -> 5661.71452 | I48: =(VLOOKUP($I$16,Tablas!$A$830:$G$896,5,TRUE))*1.1494 -> 4038.93413 | J48: =(VLOOKUP($I$16,Tablas!$A$830:$G$896,6,TRUE))*1.1494 -> 2949.70522
E49: Prima para conyuge | G49: =(IF($F$16=1,0,(VLOOKUP($I$18,Tablas!$A$830:$G$896,3,TRUE))))*1.1494 -> 9994.291615 | H49: =(IF($F$16=1,0,(VLOOKUP($I$18,Tablas!$A$830:$G$896,4,TRUE))))*1.1494 -> 9589.070645 | I49: =(IF($F$16=1,0,(VLOOKUP($I$18,Tablas!$A$830:$G$896,5,TRUE))))*1.1494 -> 6883.383045 | J49: =(IF($F$16=1,0,(VLOOKUP($I$18,Tablas!$A$830:$G$896,6,TRUE))))*1.1494 -> 5026.067585
E50: Prima para hijo (s) | G50: =(IF($F$18=0,0,(VLOOKUP($F$18,Tablas!$A$897:$G$899,3,TRUE))))*1.1494 -> 1466.6344 | H50: =(IF($F$18=0,0,(VLOOKUP($F$18,Tablas!$A$897:$G$899,4,TRUE))))*1.1494 -> 1406.57825 | I50: =(IF($F$18=0,0,(VLOOKUP($F$18,Tablas!$A$897:$G$899,5,TRUE))))*1.1494 -> 1077.21768 | J50: =(IF($F$18=0,0,(VLOOKUP($F$18,Tablas!$A$897:$G$899,6,TRUE))))*1.1494 -> 786.735565
E51: Total de Prima neta | G51: =(SUM(G48:G50)) -> 17361.28471 | H51: =(SUM(H48:H50)) -> 16657.36341 | I51: =(SUM(I48:I50)) -> 11999.53485 | J51: =(SUM(J48:J50)) -> 8762.50837
E52: Costo Administrativo Anual | G52: 86 | H52: 86 | I52: 86 | J52: 86
E53: IVA (14.49%) | G53: =(G52)*0% -> 0 | H53: =(H52)*0% -> 0 | I53: =(I52)*0% -> 0 | J53: =(J52)*0% -> 0
E55: TOTAL de primera cuota | G55: =SUM(G51:G53) -> 17447.28471 | H55: =SUM(H51:H53) -> 16743.36341 | I55: =SUM(I51:I53) -> 12085.53485 | J55: =SUM(J51:J53) -> 8848.50837
E56: Tres (3) cuotas adicionales, cada una de: | G56: =G51+G53 -> 17361.28471 | H56: =H51+H53 -> 16657.36341 | I56: =I51+I53 -> 11999.53485 | J56: =J51+J53 -> 8762.50837
E57: TOTAL ANUAL | G57: =G55+(G56*3) -> 69531.13884 | H57: =H55+(H56*3) -> 66715.45366 | I57: 48084.13942 | J57: =J55+(J56*3) -> 35136.03348
E60: Tarifas Mensuales
E61: Prima para Asegurado Titular | G61: =(VLOOKUP($I$16,Tablas!$A$379:$G$445,3,TRUE))*1.1494 -> 2002.545981 | H61: =(VLOOKUP($I$16,Tablas!$A$379:$G$445,4,TRUE))*1.1494 -> 1921.551595 | I61: =(VLOOKUP($I$16,Tablas!$A$379:$G$445,5,TRUE))*1.1494 -> 1370.789765 | J61: =(VLOOKUP($I$16,Tablas!$A$379:$G$445,6,TRUE))*1.1494 -> 1001.112075
E62: Prima para conyuge | G62: =(IF($F$16=1,0,(VLOOKUP($I$18,Tablas!$A$379:$G$445,3,TRUE))))*1.1494 -> 3392.002003 | H62: =(IF($F$16=1,0,(VLOOKUP($I$18,Tablas!$A$379:$G$445,4,TRUE))))*1.1494 -> 3254.472461 | I62: =(IF($F$16=1,0,(VLOOKUP($I$18,Tablas!$A$379:$G$445,5,TRUE))))*1.1494 -> 2336.178488 | J62: =(IF($F$16=1,0,(VLOOKUP($I$18,Tablas!$A$379:$G$445,6,TRUE))))*1.1494 -> 1705.816877
E63: Prima para hijo (s) | G63: =(IF($F$18=0,0,(VLOOKUP($F$18,Tablas!$A$446:$G$448,3,TRUE))))*1.1494 -> 497.7668267 | H63: =(IF($F$18=0,0,(VLOOKUP($F$18,Tablas!$A$446:$G$448,4,TRUE))))*1.1494 -> 477.3841333 | I63: =(IF($F$18=0,0,(VLOOKUP($F$18,Tablas!$A$446:$G$448,5,TRUE))))*1.1494 -> 365.601152 | J63: =(IF($F$18=0,0,(VLOOKUP($F$18,Tablas!$A$446:$G$448,6,TRUE))))*1.1494 -> 267.0132827
E64: Total de Prima neta | G64: =(SUM(G61:G63)) -> 5892.314811 | H64: =(SUM(H61:H63)) -> 5653.408189 | I64: =(SUM(I61:I63)) -> 4072.569405 | J64: =(SUM(J61:J63)) -> 2973.942235
E65: Costo Administrativo Anual | G65: 86 | H65: 86 | I65: 86 | J65: 86
E66: IVA (14.49%) | G66: =(G65)*0% -> 0 | H66: =(H65)*0% -> 0 | I66: =(I65)*0% -> 0 | J66: =(J65)*0% -> 0
E68: TOTAL de primera cuota | G68: =SUM(G64:G66) -> 5978.314811 | H68: =SUM(H64:H66) -> 5739.408189 | I68: =SUM(I64:I66) -> 4158.569405 | J68: =SUM(J64:J66) -> 3059.942235
E69: Once (11) cuotas mensuales cada una de: | G69: =G64+G66 -> 5892.314811 | H69: =H64+H66 -> 5653.408189 | I69: =I64+I66 -> 4072.569405 | J69: =J64+J66 -> 2973.942235
E70: TOTAL ANUAL | G70: =G68+(G69*11) -> 70793.77773 | H70: =H68+(H69*11) -> 67926.89827 | I70: =I68+(I69*11) -> 48956.83286 | J70: =J68+(J69*11) -> 35773.30682
E72: Tarifas en US$ - Efectivas a partir del 1ro. de Enero de 2023
E73: Este presupuesto solamente tiene carácter informativo y en ningún momento expresa compromiso legal para suministrarle cobertura de seguro. La emisión de una póliza de seguro Bupa está sujeta a todas las evaluaciones de riesgo por parte de Bupa y a la recepción de todos los pagos de prima requeridos.

Sheet Global Major Medical Health Pl
A12: Global Major Medical Health Plan | D12: Nombre del Asegurado Titular: | F12: =+'INGRESO DE DATOS'!$D$15 -> JOHN DOE
E14: Cotizado Por: | F14: =+'INGRESO DE DATOS'!$D$21 -> NOMBRE DE AGENTE
D16: Número de adultos en la póliza: | F16: =+'INGRESO DE DATOS'!$D$17 -> 2 | H16: Edad del Asegurado Titular: | I16: =+'INGRESO DE DATOS'!$D$19 -> 65
D18: Número de niños en la póliza: | F18: =+'INGRESO DE DATOS'!$H$17 -> 3 | H18: Edad del/la conyuge: | I18: =+'INGRESO DE DATOS'!$H$19 -> 71
E20: Fecha de la cotización: | F20: =NOW() -> 2022-12-06T15:03:42.210
H21: FALSE
E22: Deducibles | G22: PLAN 1 | H22: PLAN 2
E23: En el país de residencia | G23: 10000 | H23: 20000
E24: Fuera del país de residencia | G24: 10000 | H24: 20000
E26: Tarifas Anuales
E27: Prima para Asegurado Titular | G27: =(VLOOKUP($I$16,Tablas!$A$1129:$G$1195,3,TRUE))*1.1494 -> 12456.0478 | H27: =(VLOOKUP($I$16,Tablas!$A$1129:$G$1195,4,TRUE))*1.1494 -> 9799.7844
E28: Prima para conyuge | G28: =(IF($F$16=1,0,(VLOOKUP($I$18,Tablas!$A$1129:$G$1195,3,TRUE))))*1.1494 -> 20671.959 | H28: =(IF($F$16=1,0,(VLOOKUP($I$18,Tablas!$A$1129:$G$1195,4,TRUE))))*1.1494 -> 16678.9434
E29: Prima para hijo (s) | G29: =(IF($F$18=0,0,(VLOOKUP($F$18,Tablas!$A$1196:$G$1198,3,TRUE))))*1.1494 -> 3129.8162 | H29: =(IF($F$18=0,0,(VLOOKUP($F$18,Tablas!$A$1196:$G$1198,4,TRUE))))*1.1494 -> 2455.1184
E30: Total de Prima neta | G30: =(SUM(G27:G29)) -> 36257.823 | H30: =(SUM(H27:H29)) -> 28933.8462
E31: Costo Administrativo Anual | G31: 86 | H31: 86
E32: IVA (14.49%) | G32: =(G31)*0% -> 0 | H32: =(H31)*0% -> 0
E34: TOTAL ANUAL | G34: =SUM(G30:G32) -> 36343.823 | H34: =SUM(H30:H32) -> 29019.8462
E36: Tarifas Semianuales
E37: Prima para Asegurado Titular | G37: =(VLOOKUP($I$16,Tablas!$A$1353:$G$1419,3,TRUE))*1.1494 -> 6601.705334 | H37: =(VLOOKUP($I$16,Tablas!$A$1353:$G$1419,4,TRUE))*1.1494 -> 5193.885732
E38: Prima para conyuge | G38: =(IF($F$16=1,0,(VLOOKUP($I$18,Tablas!$A$1353:$G$1419,3,TRUE))))*1.1494 -> 10956.13827 | H38: =(IF($F$16=1,0,(VLOOKUP($I$18,Tablas!$A$1353:$G$1419,4,TRUE))))*1.1494 -> 8839.840002
E39: Prima para hijo (s) | G39: =(IF($F$18=0,0,(VLOOKUP($F$18,Tablas!$A$1420:$G$1422,3,TRUE))))*1.1494 -> 1658.802586 | H39: =(IF($F$18=0,0,(VLOOKUP($F$18,Tablas!$A$1420:$G$1422,4,TRUE))))*1.1494 -> 1301.212752
E40: Total de Prima neta | G40: =(SUM(G37:G39)) -> 19216.64619 | H40: =(SUM(H37:H39)) -> 15334.93849
E41: Costo Administrativo Anual | G41: 86 | H41: 86
E42: IVA (14.49%) | G42: =(G41)*0% -> 0 | H42: =(H41)*0% -> 0
E43: TOTAL de primera cuota | G43: =SUM(G40:G42) -> 19302.64619 | H43: =SUM(H40:H42) -> 15420.93849
E44: Costo de segunda cuota | G44: =G40+G42 -> 19216.64619 | H44: =H40+H42 -> 15334.93849
E45: TOTAL ANUAL | G45: =G43+G44 -> 38519.29238 | H45: =H43+H44 -> 30755.87697
E47: Tarifas Trimestrales
E48: Prima para Asegurado Titular | G48: =(VLOOKUP($I$16,Tablas!$A$1278:$G$1344,3,TRUE))*1.1494 -> 3425.413145 | H48: =(VLOOKUP($I$16,Tablas!$A$1278:$G$1344,4,TRUE))*1.1494 -> 2694.94071
E49: Prima para conyuge | G49: =(IF($F$16=1,0,(VLOOKUP($I$18,Tablas!$A$1278:$G$1344,3,TRUE))))*1.1494 -> 5684.788725 | H49: =(IF($F$16=1,0,(VLOOKUP($I$18,Tablas!$A$1278:$G$1344,4,TRUE))))*1.1494 -> 4586.709435
E50: Prima para hijo (s) | G50: =(IF($F$18=0,0,(VLOOKUP($F$18,Tablas!$A$1345:$G$1347,3,TRUE))))*1.1494 -> 860.699455 | H50: =(IF($F$18=0,0,(VLOOKUP($F$18,Tablas!$A$1345:$G$1347,4,TRUE))))*1.1494 -> 675.15756
E51: Total de Prima neta | G51: =(SUM(G48:G50)) -> 9970.901325 | H51: =(SUM(H48:H50)) -> 7956.807705
E52: Costo Administrativo Anual | G52: 86 | H52: 86
E53: IVA (14.49%) | G53: =(G52)*0% -> 0 | H53: =(H52)*0% -> 0
E55: TOTAL de primera cuota | G55: =SUM(G51:G53) -> 10056.90133 | H55: =SUM(H51:H53) -> 8042.807705
E56: Tres (3) cuotas adicionales, cada una de: | G56: =G51+G53 -> 9970.901325 | H56: =H51+H53 -> 7956.807705
E57: TOTAL ANUAL | G57: =G55+(G56*3) -> 39969.6053 | H57: =H55+(H56*3) -> 31913.23082
E59: Tarifas Mensuales
E60: Prima para Asegurado Titular | G60: =(VLOOKUP($I$16,Tablas!$A$1203:$G$1269,3,TRUE))*1.1494 -> 1162.564461 | H60: =(VLOOKUP($I$16,Tablas!$A$1203:$G$1269,4,TRUE))*1.1494 -> 914.646544
E61: Prima para conyuge | G61: =(IF($F$16=1,0,(VLOOKUP($I$18,Tablas!$A$1203:$G$1269,3,TRUE))))*1.1494 -> 1929.38284 | H61: =(IF($F$16=1,0,(VLOOKUP($I$18,Tablas!$A$1203:$G$1269,4,TRUE))))*1.1494 -> 1556.701384
E62: Prima para hijo (s) | G62: =(IF($F$18=0,0,(VLOOKUP($F$18,Tablas!$A$1270:$G$1272,3,TRUE))))*1.1494 -> 292.1161787 | H62: =(IF($F$18=0,0,(VLOOKUP($F$18,Tablas!$A$1270:$G$1272,4,TRUE))))*1.1494 -> 229.144384
E63: Total de Prima neta | G63: =(SUM(G60:G62)) -> 3384.06348 | H63: =(SUM(H60:H62)) -> 2700.492312
E64: Costo Administrativo Anual | G64: 86 | H64: 86
E65: IVA (14.49%) | G65: =(G64)*0% -> 0 | H65: =(H64)*0% -> 0
E67: TOTAL de primera cuota | G67: =SUM(G63:G65) -> 3470.06348 | H67: =SUM(H63:H65) -> 2786.492312
E68: Once (11) cuotas mensuales cada una de: | G68: =G63+G65 -> 3384.06348 | H68: =H63+H65 -> 2700.492312
E69: TOTAL ANUAL | G69: =G67+(G68*11) -> 40694.76176 | H69: =H67+(H68*11) -> 32491.90774
E71: Tarifas en US$ - Efectivas a partir del 1ro. de Enero de 2023
E72: Este presupuesto solamente tiene carácter informativo y en ningún momento expresa compromiso legal para suministrarle cobertura de seguro. La emisión de una póliza de seguro Bupa está sujeta a todas las evaluaciones de riesgo por parte de Bupa y a la recepción de todos los pagos de prima requeridos.

Sheet Resumen tarifas
A20: Cotización de Seguro Médico - Global Health Plans
A22: Nombre del Asegurado Titular | C22: =+'INGRESO DE DATOS'!$D$15 -> JOHN DOE
B23: Cotizado por | C23: =+'INGRESO DE DATOS'!$D$21 -> NOMBRE DE AGENTE
A25: Número de adultos en la póliza | C25: =+'INGRESO DE DATOS'!$D$17 -> 2 | E25: Edad del Asegurado Titular | G25: =+'INGRESO DE DATOS'!$D$19 -> 65
A28: Número de niños en la póliza | C28: =+'INGRESO DE DATOS'!$H$17 -> 3 | E28: Edad del/la cónyuge | G28: =+'INGRESO DE DATOS'!$H$19 -> 71
C31: Fecha de la Cotización: | D31: =NOW() -> 2022-12-06T15:03:42.210
A33: Bupa Global Ultimtate Health Plan
A34: Deducibles | C34: PLAN 1 | D34: PLAN 2
A35: En el país de residencia | C35: 0 | D35: 1000
A36: Fuera del país de residencia | C36: 0 | D36: 1000
C37: Tarifas Anuales
C38: ='Global Ultimate Health Plan'!G36 -> 293543.9116 | D38: ='Global Ultimate Health Plan'!H36 -> 189423.2138
C39: Tarifas Semi-anuales
C40: ='Global Ultimate Health Plan'!G47 -> 155532.6931 | D40: ='Global Ultimate Health Plan'!H47 -> 100348.7233
C41: Tarifas Trimestrales
C42: ='Global Ultimate Health Plan'!G60 -> 80700.92569 | D42: ='Global Ultimate Health Plan'!H60 -> 52067.7338
C43: Tarifas Mensuales
C44: ='Global Ultimate Health Plan'!G75 -> 27389.40508 | D44: ='Global Ultimate Health Plan'!H75 -> 17671.47329
A45: Ahorros en tarifas de prima para niños* | C45: ='Global Ultimate Health Plan'!G37 -> 15616.8978 | D45: ='Global Ultimate Health Plan'!H37 -> 10077.9392
A47: Bupa Global Elite Health Plan
A48: Deducibles | D48: PLAN 1 | E48: PLAN 2 | F48: PLAN 3 | G48: PLAN 4 | H48: PLAN 5
A49: En el país de residencia | D49: 250 | E49: 2000 | F49: 3500 | G49: 5000 | H49: 10000
A50: Fuera del país de residencia | D50: 5000 | E50: 2000 | F50: 3500 | G50: 5000 | H50: 10000
D51: Tarifas Anuales
D52: =+'Global Elite Health Plan'!G36 -> 127330.327 | E52: =+'Global Elite Health Plan'!H36 -> 111621.4772 | F52: =+'Global Elite Health Plan'!I36 -> 90163.3286 | G52: =+'Global Elite Health Plan'!J36 -> 78198.0746 | H52: =+'Global Elite Health Plan'!K36 -> 59583.5416
D53: Tarifas Semi-anuales
D54: =+'Global Elite Health Plan'!G47 -> 67439.49331 | E54: =+'Global Elite Health Plan'!H47 -> 59113.80292 | F54: =+'Global Elite Health Plan'!I47 -> 47740.98416 | G54: =+'Global Elite Health Plan'!J47 -> 41399.39954 | H54: =+'Global Elite Health Plan'!K47 -> 31533.69705
D55: Tarifas Trimestrales
D56: =+'Global Elite Health Plan'!G60 -> 34992.18992 | E56: =+'Global Elite Health Plan'!H60 -> 30672.25623 | F56: =+'Global Elite Health Plan'!I60 -> 24771.26536 | G56: =+'Global Elite Health Plan'!J60 -> 21480.82052 | H56: =+'Global Elite Health Plan'!K60 -> 16361.82394
D57: Tarifas Mensuales
D58: =+'Global Elite Health Plan'!G74 -> 11876.13719 | E58: =+'Global Elite Health Plan'!H74 -> 10409.97787 | F58: =+'Global Elite Health Plan'!I74 -> 8407.217336 | G58: =+'Global Elite Health Plan'!J74 -> 7290.460296 | H58: =+'Global Elite Health Plan'!K74 -> 5553.103883
A59: Ahorros en tarifas de prima para niños* | D59: =+'Global Elite Health Plan'!G37 -> 6765.3684 | E59: =+'Global Elite Health Plan'!H37 -> 5929.7546 | F59: =+'Global Elite Health Plan'!I37 -> 4960.8104 | G59: =+'Global Elite Health Plan'!J37 -> 4301.0548 | H59: =+'Global Elite Health Plan'!K37 -> 3276.9394
A61: Bupa Global Premier Health Plan
A62: Deducibles | E62: PLAN 1 | F62: PLAN 2 | G62: PLAN 3 | H62: PLAN 4
A63: En el país de residencia | E63: 250 | F63: 2000 | G63: 5000 | H63: 10000
A64: Fuera del país de residencia | E64: 5000 | F64: 2000 | G64: 5000 | H64: 10000
E65: Tarifas Anuales
E66: =+'Global Premier Health Plan'!G34 -> 88163.3726 | F66: =+'Global Premier Health Plan'!H34 -> 80017.5748 | G66: =+'Global Premier Health Plan'!I34 -> 57530.7132 | H66: =+'Global Premier Health Plan'!J34 -> 42054.0422
E67: Tarifas Semi-anuales
E68: =+'Global Premier Health Plan'!G44 -> 46681.00748 | F68: =+'Global Premier Health Plan'!H44 -> 42363.73464 | G68: =+'Global Premier Health Plan'!I44 -> 30445.698 | H68: =+'Global Premier Health Plan'!J44 -> 22243.06237
E69: Tarifas Trimestrales
E70: =+'Global Premier Health Plan'!G56 -> 24221.27747 | F70: =+'Global Premier Health Plan'!H56 -> 21981.18307 | G70: =+'Global Premier Health Plan'!I56 -> 15797.29613 | H70: =+'Global Premier Health Plan'!J56 -> 11541.21161
E71: Tarifas Mensuales
E72: =+'Global Premier Health Plan'!G69 -> 8220.554776 | F72: =+'Global Premier Health Plan'!H69 -> 7460.280315 | G72: =+'Global Premier Health Plan'!I69 -> 5361.506565 | H72: =+'Global Premier Health Plan'!J69 -> 3917.017272
A74: Bupa Global Select Health Plan
A75: Deducibles | E75: PLAN 1 | F75: PLAN 2 | G75: PLAN 3 | H75: PLAN 4
A76: En el país de residencia | E76: 250 | F76: 2000 | G76: 5000 | H76: 10000
A77: Fuera del país de residencia | E77: 5000 | F77: 2000 | G77: 5000 | H77: 10000
E78: Tarifas Anuales
E79: =+'Global Select Health Plan'!G34 -> 63217.9444 | F79: =+'Global Select Health Plan'!H34 -> 60658.2306 | G79: =+'Global Select Health Plan'!I34 -> 43720.6722 | H79: =+'Global Select Health Plan'!J34 -> 31949.6668
E80: Tarifas Semi-anuales
E81: =+'Global Select Health Plan'!G44 -> 33459.93053 | F81: =+'Global Select Health Plan'!H44 -> 32103.28222 | G81: =+'Global Select Health Plan'!I44 -> 23126.37627 | H81: =+'Global Select Health Plan'!J44 -> 16887.7434
E82: Tarifas Trimestrales
E83: =+'Global Select Health Plan'!G56 -> 17361.28471 | F83: =+'Global Select Health Plan'!H56 -> 16657.36341 | G83: =+'Global Select Health Plan'!I56 -> 11999.53485 | H83: =+'Global Select Health Plan'!J56 -> 8762.50837
E84: Tarifas Mensuales
E85: =+'Global Select Health Plan'!G69 -> 5892.314811 | F85: =+'Global Select Health Plan'!H69 -> 5653.408189 | G85: =+'Global Select Health Plan'!I69 -> 4072.569405 | H85: =+'Global Select Health Plan'!J69 -> 2973.942235
A87: Bupa Global Major Medical Health Plan
A88: Deducibles | C88: PLAN 1 | D88: PLAN 2
A89: En el país de residencia | C89: 10000 | D89: 20000
A90: Fuera del país de residencia | C90: 10000 | D90: 20000
C91: Tarifas Anuales
C92: ='Global Major Medical Health Pl'!G34 -> 36343.823 | D92: ='Global Major Medical Health Pl'!H34 -> 29019.8462
C93: Tarifas Semi-anuales
C94: ='Global Major Medical Health Pl'!G44 -> 19216.64619 | D94: ='Global Major Medical Health Pl'!H44 -> 15334.93849
C95: Tarifas Trimestrales
C96: ='Global Major Medical Health Pl'!G56 -> 9970.901325 | D96: ='Global Major Medical Health Pl'!H56 -> 7956.807705
C97: Tarifas Mensuales
C98: ='Global Major Medical Health Pl'!G68 -> 3384.06348 | D98: ='Global Major Medical Health Pl'!H68 -> 2700.492312
A100: Notas:
A101: Primas anuales incluyen US$86.00 por Costo Administrativo Anual
A102: Costo administrativo anual incluido en el primer pago de los pagos semestrales, trimestrales y mensuales
A103: *Basado en un modo de pago anual
A105: Tarifas en US$ - Efectivas a partir del 1ro. de Enero de 2023
A106: Este presupuesto solamente tiene carácter informativo y en ningún momento expresa compromiso legal para suministrarle cobertura de seguro. La emisión de una póliza de seguro Bupa está sujeta a todas las evaluaciones de riesgo por parte de Bupa y a la recepción de todos los pagos de prima requeridos.

Sheet Tablas (hidden)
A2: BUPA GLOBAL ELITE | I2: FACTOR MENSUAL: | K2: 0.09333333333
A3: TARIFAS ANUALES | I3: FACTOR TRIMESTRAL: | K3: 0.275
A4: EDAD | I4: FACTOR SEMIANUAL: | K4: 0.53 | U4: Bupa Bolivia 2023 Marketing Rates - USD - wout Tax 20221013 (1)
C5: 250 | D5: 2000 | E5: 3500 | F5: 5000 | G5: 10000 | U5: 2 | V5: 6 | W5: 10 | X5: 14 | Y5: 18
A6: 18 | B6: 18 | C6: 9953 | D6: 8722 | E6: 7245 | F6: 6286 | G6: 4787 | U6: 0 | V6: 0 | W6: 0 | X6: 0 | Y6: 0
A7: 19 | B7: 18 | C7: 9953 | D7: 8722 | E7: 7245 | F7: 6286 | G7: 4787 | U7: 0 | V7: 0 | W7: 0 | X7: 0 | Y7: 0
A8: 20 | B8: 18 | C8: 9953 | D8: 8722 | E8: 7245 | F8: 6286 | G8: 4787 | U8: 0 | V8: 0 | W8: 0 | X8: 0 | Y8: 0
A9: 21 | B9: 18 | C9: 9953 | D9: 8722 | E9: 7245 | F9: 6286 | G9: 4787 | U9: 0 | V9: 0 | W9: 0 | X9: 0 | Y9: 0
A10: 22 | B10: 18 | C10: 9953 | D10: 8722 | E10: 7245 | F10: 6286 | G10: 4787 | U10: 0 | V10: 0 | W10: 0 | X10: 0 | Y10: 0
A11: 23 | B11: 18 | C11: 9953 | D11: 8722 | E11: 7245 | F11: 6286 | G11: 4787 | U11: 0 | V11: 0 | W11: 0 | X11: 0 | Y11: 0
A12: 24 | B12: 18 | C12: 9953 | D12: 8722 | E12: 7245 | F12: 6286 | G12: 4787 | U12: 0 | V12: 0 | W12: 0 | X12: 0 | Y12: 0
A13: 25 | B13: 25 | C13: 10634 | D13: 9320 | E13: 7695 | F13: 6672 | G13: 5085 | U13: 0 | V13: 0 | W13: 0 | X13: 0 | Y13: 0
A14: 26 | B14: 25 | C14: 10634 | D14: 9320 | E14: 7695 | F14: 6672 | G14: 5085 | U14: 0 | V14: 0 | W14: 0 | X14: 0 | Y14: 0
A15: 27 | B15: 25 | C15: 10634 | D15: 9320 | E15: 7695 | F15: 6672 | G15: 5085 | U15: 0 | V15: 0 | W15: 0 | X15: 0 | Y15: 0
A16: 28 | B16: 25 | C16: 10634 | D16: 9320 | E16: 7695 | F16: 6672 | G16: 5085 | U16: 0 | V16: 0 | W16: 0 | X16: 0 | Y16: 0
A17: 29 | B17: 25 | C17: 10634 | D17: 9320 | E17: 7695 | F17: 6672 | G17: 5085 | U17: 0 | V17: 0 | W17: 0 | X17: 0 | Y17: 0
A18: 30 | B18: 30 | C18: 11825 | D18: 10365 | E18: 8494 | F18: 7364 | G18: 5609 | U18: 0 | V18: 0 | W18: 0 | X18: 0 | Y18: 0
A19: 31 | B19: 30 | C19: 11825 | D19: 10365 | E19: 8494 | F19: 7364 | G19: 5609 | U19: 0 | V19: 0 | W19: 0 | X19: 0 | Y19: 0
A20: 32 | B20: 30 | C20: 11825 | D20: 10365 | E20: 8494 | F20: 7364 | G20: 5609 | U20: 0 | V20: 0 | W20: 0 | X20: 0 | Y20: 0
A21: 33 | B21: 30 | C21: 11825 | D21: 10365 | E21: 8494 | F21: 7364 | G21: 5609 | U21: 0 | V21: 0 | W21: 0 | X21: 0 | Y21: 0
A22: 34 | B22: 30 | C22: 11825 | D22: 10365 | E22: 8494 | F22: 7364 | G22: 5609 | U22: 0 | V22: 0 | W22: 0 | X22: 0 | Y22: 0
A23: 35 | B23: 35 | C23: 13200 | D23: 11567 | E23: 9425 | F23: 8174 | G23: 6226 | U23: 0 | V23: 0 | W23: 0 | X23: 0 | Y23: 0
A24: 36 | B24: 35 | C24: 13200 | D24: 11567 | E24: 9425 | F24: 8174 | G24: 6226 | U24: 0 | V24: 0 | W24: 0 | X24: 0 | Y24: 0
A25: 37 | B25: 35 | C25: 13200 | D25: 11567 | E25: 9425 | F25: 8174 | G25: 6226 | U25: 0 | V25: 0 | W25: 0 | X25: 0 | Y25: 0
A26: 38 | B26: 35 | C26: 13200 | D26: 11567 | E26: 9425 | F26: 8174 | G26: 6226 | U26: 0 | V26: 0 | W26: 0 | X26: 0 | Y26: 0
A27: 39 | B27: 35 | C27: 13200 | D27: 11567 | E27: 9425 | F27: 8174 | G27: 6226 | U27: 0 | V27: 0 | W27: 0 | X27: 0 | Y27: 0
A28: 40 | B28: 40 | C28: 15277 | D28: 13389 | E28: 10860 | F28: 9417 | G28: 7175 | U28: 0 | V28: 0 | W28: 0 | X28: 0 | Y28: 0
A29: 41 | B29: 40 | C29: 15277 | D29: 13389 | E29: 10860 | F29: 9417 | G29: 7175 | U29: 0 | V29: 0 | W29: 0 | X29: 0 | Y29: 0
A30: 42 | B30: 40 | C30: 15277 | D30: 13389 | E30: 10860 | F30: 9417 | G30: 7175 | U30: 0 | V30: 0 | W30: 0 | X30: 0 | Y30: 0
A31: 43 | B31: 40 | C31: 15277 | D31: 13389 | E31: 10860 | F31: 9417 | G31: 7175 | U31: 0 | V31: 0 | W31: 0 | X31: 0 | Y31: 0
A32: 44 | B32: 40 | C32: 15277 | D32: 13389 | E32: 10860 | F32: 9417 | G32: 7175 | U32: 0 | V32: 0 | W32: 0 | X32: 0 | Y32: 0
A33: 45 | B33: 45 | C33: 17098 | D33: 14985 | E33: 12117 | F33: 10506 | G33: 8002 | U33: 0 | V33: 0 | W33: 0 | X33: 0 | Y33: 0
A34: 46 | B34: 45 | C34: 17098 | D34: 14985 | E34: 12117 | F34: 10506 | G34: 8002 | U34: 0 | V34: 0 | W34: 0 | X34: 0 | Y34: 0
A35: 47 | B35: 45 | C35: 17098 | D35: 14985 | E35: 12117 | F35: 10506 | G35: 8002 | U35: 0 | V35: 0 | W35: 0 | X35: 0 | Y35: 0
A36: 48 | B36: 45 | C36: 17098 | D36: 14985 | E36: 12117 | F36: 10506 | G36: 8002 | U36: 0 | V36: 0 | W36: 0 | X36: 0 | Y36: 0
A37: 49 | B37: 45 | C37: 17098 | D37: 14985 | E37: 12117 | F37: 10506 | G37: 8002 | U37: 0 | V37: 0 | W37: 0 | X37: 0 | Y37: 0
A38: 50 | B38: 50 | C38: 19760 | D38: 17321 | E38: 13972 | F38: 12117 | G38: 9229 | U38: 0 | V38: 0 | W38: 0 | X38: 0 | Y38: 0
A39: 51 | B39: 50 | C39: 19760 | D39: 17321 | E39: 13972 | F39: 12117 | G39: 9229 | U39: 0 | V39: 0 | W39: 0 | X39: 0 | Y39: 0
A40: 52 | B40: 50 | C40: 19760 | D40: 17321 | E40: 13972 | F40: 12117 | G40: 9229 | U40: 0 | V40: 0 | W40: 0 | X40: 0 | Y40: 0
A41: 53 | B41: 50 | C41: 19760 | D41: 17321 | E41: 13972 | F41: 12117 | G41: 9229 | U41: 0 | V41: 0 | W41: 0 | X41: 0 | Y41: 0
A42: 54 | B42: 50 | C42: 19760 | D42: 17321 | E42: 13972 | F42: 12117 | G42: 9229 | U42: 0 | V42: 0 | W42: 0 | X42: 0 | Y42: 0
A43: 55 | B43: 55 | C43: 22091 | D43: 19364 | E43: 15599 | F43: 13528 | G43: 10304 | U43: 0 | V43: 0 | W43: 0 | X43: 0 | Y43: 0
A44: 56 | B44: 55 | C44: 22091 | D44: 19364 | E44: 15599 | F44: 13528 | G44: 10304 | U44: 0 | V44: 0 | W44: 0 | X44: 0 | Y44: 0
A45: 57 | B45: 55 | C45: 22091 | D45: 19364 | E45: 15599 | F45: 13528 | G45: 10304 | U45: 0 | V45: 0 | W45: 0 | X45: 0 | Y45: 0
A46: 58 | B46: 55 | C46: 22091 | D46: 19364 | E46: 15599 | F46: 13528 | G46: 10304 | U46: 0 | V46: 0 | W46: 0 | X46: 0 | Y46: 0
A47: 59 | B47: 55 | C47: 22091 | D47: 19364 | E47: 15599 | F47: 13528 | G47: 10304 | U47: 0 | V47: 0 | W47: 0 | X47: 0 | Y47: 0
A48: 60 | B48: 60 | C48: 23643 | D48: 20725 | E48: 16681 | F48: 14464 | G48: 11017 | U48: 0 | V48: 0 | W48: 0 | X48: 0 | Y48: 0
A49: 61 | B49: 61 | C49: 26757 | D49: 23455 | E49: 18870 | F49: 16365 | G49: 12464 | U49: 0 | V49: 0 | W49: 0 | X49: 0 | Y49: 0
A50: 62 | B50: 62 | C50: 29728 | D50: 26056 | E50: 20959 | F50: 18172 | G50: 13840 | U50: 0 | V50: 0 | W50: 0 | X50: 0 | Y50: 0
A51: 63 | B51: 63 | C51: 32916 | D51: 28855 | E51: 23209 | F51: 20124 | G51: 15329 | U51: 0 | V51: 0 | W51: 0 | X51: 0 | Y51: 0
A52: 64 | B52: 64 | C52: 36335 | D52: 31847 | E52: 25621 | F52: 22216 | G52: 16921 | U52: 0 | V52: 0 | W52: 0 | X52: 0 | Y52: 0
A53: 65 | B53: 65 | C53: 39974 | D53: 35041 | E53: 28197 | F53: 24452 | G53: 18626 | U53: 0 | V53: 0 | W53: 0 | X53: 0 | Y53: 0
A54: 66 | B54: 66 | C54: 43840 | D54: 38428 | E54: 30937 | F54: 26826 | G54: 20435 | U54: 0 | V54: 0 | W54: 0 | X54: 0 | Y54: 0
A55: 67 | B55: 67 | C55: 47929 | D55: 42010 | E55: 33842 | F55: 29344 | G55: 22351 | U55: 0 | V55: 0 | W55: 0 | X55: 0 | Y55: 0
A56: 68 | B56: 68 | C56: 52240 | D56: 45790 | E56: 36907 | F56: 32004 | G56: 24378 | U56: 0 | V56: 0 | W56: 0 | X56: 0 | Y56: 0
A57: 69 | B57: 69 | C57: 56779 | D57: 49767 | E57: 40139 | F57: 34807 | G57: 26511 | U57: 0 | V57: 0 | W57: 0 | X57: 0 | Y57: 0
A58: 70 | B58: 70 | C58: 61539 | D58: 53940 | E58: 43530 | F58: 37747 | G58: 28751 | U58: 0 | V58: 0 | W58: 0 | X58: 0 | Y58: 0
A59: 71 | B59: 71 | C59: 66523 | D59: 58309 | E59: 47088 | F59: 40832 | G59: 31100 | U59: 0 | V59: 0 | W59: 0 | X59: 0 | Y59: 0
A60: 72 | B60: 72 | C60: 71732 | D60: 62878 | E60: 50807 | F60: 44054 | G60: 33556 | U60: 0 | V60: 0 | W60: 0 | X60: 0 | Y60: 0
A61: 73 | B61: 73 | C61: 77166 | D61: 67638 | E61: 54693 | F61: 47423 | G61: 36121 | U61: 0 | V61: 0 | W61: 0 | X61: 0 | Y61: 0
A62: 74 | B62: 74 | C62: 82825 | D62: 72595 | E62: 58737 | F62: 50932 | G62: 38794 | U62: 0 | V62: 0 | W62: 0 | X62: 0 | Y62: 0
A63: 75 | B63: 75 | C63: 88705 | D63: 77751 | E63: 62945 | F63: 54581 | G63: 41573 | U63: 0 | V63: 0 | W63: 0 | X63: 0 | Y63: 0
A64: 76 | B64: 75 | C64: 88705 | D64: 77751 | E64: 62945 | F64: 54581 | G64: 41573 | U64: 0 | V64: 0 | W64: 0 | X64: 0 | Y64: 0
A65: 77 | B65: 75 | C65: 88705 | D65: 77751 | E65: 62945 | F65: 54581 | G65: 41573 | U65: 0 | V65: 0 | W65: 0 | X65: 0 | Y65: 0
A66: 78 | B66: 75 | C66: 88705 | D66: 77751 | E66: 62945 | F66: 54581 | G66: 41573 | U66: 0 | V66: 0 | W66: 0 | X66: 0 | Y66: 0
A67: 79 | B67: 75 | C67: 88705 | D67: 77751 | E67: 62945 | F67: 54581 | G67: 41573 | U67: 0 | V67: 0 | W67: 0 | X67: 0 | Y67: 0
A68: 80 | B68: 75 | C68: 88705 | D68: 77751 | E68: 62945 | F68: 54581 | G68: 41573 | U68: 0 | V68: 0 | W68: 0 | X68: 0 | Y68: 0
A69: 81 | B69: 75 | C69: 88705 | D69: 77751 | E69: 62945 | F69: 54581 | G69: 41573 | U69: 0 | V69: 0 | W69: 0 | X69: 0 | Y69: 0
A70: 82 | B70: 75 | C70: 88705 | D70: 77751 | E70: 62945 | F70: 54581 | G70: 41573 | U70: 0 | V70: 0 | W70: 0 | X70: 0 | Y70: 0
A71: 83 | B71: 75 | C71: 88705 | D71: 77751 | E71: 62945 | F71: 54581 | G71: 41573 | U71: 0 | V71: 0 | W71: 0 | X71: 0 | Y71: 0
A72: 84 | B72: 75 | C72: 88705 | D72: 77751 | E72: 62945 | F72: 54581 | G72: 41573 | U72: 0 | V72: 0 | W72: 0 | X72: 0 | Y72: 0
A73: 1 | B73: 1 Child | C73: 4208 | D73: 3688 | E73: 3084 | F73: 2675 | G73: 2038 | U73: 0 | V73: 0 | W73: 0 | X73: 0 | Y73: 0
A74: 2 | B74: 2 Children | C74: 7149 | D74: 6268 | E74: 5242 | F74: 4547 | G74: 3464 | U74: 0 | V74: 0 | W74: 0 | X74: 0 | Y74: 0
A75: 3 | B75: 3+ Children | C75: 10094 | D75: 8847 | E75: 7400 | F75: 6417 | G75: 4889 | U75: 0 | V75: 0 | W75: 0 | X75: 0 | Y75: 0
A77: BUPA GLOBAL ELITE - MENSUALES
A78: EDAD
C79: 1000 | D79: 2000 | E79: 3500 | U79: 2 | V79: 6 | W79: 10 | X79: 14 | Y79: 18
A80: 18 | B80: 18 | C80: =C6*$K$2 -> 928.9466667 | D80: =D6*$K$2 -> 814.0533333 | E80: 676.2 | F80: 586.6933333 | G80: 446.7866667 | U80: 0 | V80: 0 | W80: 0 | X80: 0 | Y80: 0
A81: 19 | B81: 18 | C81: =C7*$K$2 -> 928.9466667 | D81: 814.0533333 | E81: 676.2 | F81: 586.6933333 | G81: 446.7866667 | U81: 0 | V81: 0 | W81: 0 | X81: 0 | Y81: 0
A82: 20 | B82: 18 | C82: 928.9466667 | D82: 814.0533333 | E82: 676.2 | F82: 586.6933333 | G82: 446.7866667 | U82: 0 | V82: 0 | W82: 0 | X82: 0 | Y82: 0
A83: 21 | B83: 18 | C83: 928.9466667 | D83: 814.0533333 | E83: 676.2 | F83: 586.6933333 | G83: 446.7866667 | U83: 0 | V83: 0 | W83: 0 | X83: 0 | Y83: 0
A84: 22 | B84: 18 | C84: 928.9466667 | D84: 814.0533333 | E84: 676.2 | F84: 586.6933333 | G84: 446.7866667 | U84: 0 | V84: 0 | W84: 0 | X84: 0 | Y84: 0
A85: 23 | B85: 18 | C85: 928.9466667 | D85: 814.0533333 | E85: 676.2 | F85: 586.6933333 | G85: 446.7866667 | U85: 0 | V85: 0 | W85: 0 | X85: 0 | Y85: 0
A86: 24 | B86: 18 | C86: 928.9466667 | D86: 814.0533333 | E86: 676.2 | F86: 586.6933333 | G86: 446.7866667 | U86: 0 | V86: 0 | W86: 0 | X86: 0 | Y86: 0
A87: 25 | B87: 25 | C87: 992.5066667 | D87: 869.8666667 | E87: 718.2 | F87: 622.72 | G87: 474.6 | U87: 0 | V87: 0 | W87: 0 | X87: 0 | Y87: 0
A88: 26 | B88: 25 | C88: 992.5066667 | D88: 869.8666667 | E88: 718.2 | F88: 622.72 | G88: 474.6 | U88: 0 | V88: 0 | W88: 0 | X88: 0 | Y88: 0
A89: 27 | B89: 25 | C89: 992.5066667 | D89: 869.8666667 | E89: 718.2 | F89: 622.72 | G89: 474.6 | U89: 0 | V89: 0 | W89: 0 | X89: 0 | Y89: 0
A90: 28 | B90: 25 | C90: 992.5066667 | D90: 869.8666667 | E90: 718.2 | F90: 622.72 | G90: 474.6 | U90: 0 | V90: 0 | W90: 0 | X90: 0 | Y90: 0
A91: 29 | B91: 25 | C91: 992.5066667 | D91: 869.8666667 | E91: 718.2 | F91: 622.72 | G91: 474.6 | U91: 0 | V91: 0 | W91: 0 | X91: 0 | Y91: 0
A92: 30 | B92: 30 | C92: 1103.666667 | D92: 967.4 | E92: 792.7733333 | F92: 687.3066667 | G92: 523.5066667 | U92: 0 | V92: 0 | W92: 0 | X92: 0 | Y92: 0
A93: 31 | B93: 30 | C93: 1103.666667 | D93: 967.4 | E93: 792.7733333 | F93: 687.3066667 | G93: 523.5066667 | U93: 0 | V93: 0 | W93: 0 | X93: 0 | Y93: 0
A94: 32 | B94: 30 | C94: 1103.666667 | D94: 967.4 | E94: 792.7733333 | F94: 687.3066667 | G94: 523.5066667 | U94: 0 | V94: 0 | W94: 0 | X94: 0 | Y94: 0
A95: 33 | B95: 30 | C95: 1103.666667 | D95: 967.4 | E95: 792.7733333 | F95: 687.3066667 | G95: 523.5066667 | U95: 0 | V95: 0 | W95: 0 | X95: 0 | Y95: 0
A96: 34 | B96: 30 | C96: 1103.666667 | D96: 967.4 | E96: 792.7733333 | F96: 687.3066667 | G96: 523.5066667 | U96: 0 | V96: 0 | W96: 0 | X96: 0 | Y96: 0
A97: 35 | B97: 35 | C97: 1232 | D97: 1079.586667 | E97: 879.6666667 | F97: 762.9066667 | G97: 581.0933333 | U97: 0 | V97: 0 | W97: 0 | X97: 0 | Y97: 0
A98: 36 | B98: 35 | C98: 1232 | D98: 1079.586667 | E98: 879.6666667 | F98: 762.9066667 | G98: 581.0933333 | U98: 0 | V98: 0 | W98: 0 | X98: 0 | Y98: 0
A99: 37 | B99: 35 | C99: 1232 | D99: 1079.586667 | E99: 879.6666667 | F99: 762.9066667 | G99: 581.0933333 | U99: 0 | V99: 0 | W99: 0 | X99: 0 | Y99: 0
A100: 38 | B100: 35 | C100: 1232 | D100: 1079.586667 | E100: 879.6666667 | F100: 762.9066667 | G100: 581.0933333 | U100: 0 | V100: 0 | W100: 0 | X100: 0 | Y100: 0
A101: 39 | B101: 35 | C101: 1232 | D101: 1079.586667 | E101: 879.6666667 | F101: 762.9066667 | G101: 581.0933333 | U101: 0 | V101: 0 | W101: 0 | X101: 0 | Y101: 0
A102: 40 | B102: 40 | C102: 1425.853333 | D102: 1249.64 | E102: 1013.6 | F102: 878.92 | G102: 669.6666667 | U102: 0 | V102: 0 | W102: 0 | X102: 0 | Y102: 0
A103: 41 | B103: 40 | C103: 1425.853333 | D103: 1249.64 | E103: 1013.6 | F103: 878.92 | G103: 669.6666667 | U103: 0 | V103: 0 | W103: 0 | X103: 0 | Y103: 0
A104: 42 | B104: 40 | C104: 1425.853333 | D104: 1249.64 | E104: 1013.6 | F104: 878.92 | G104: 669.6666667 | U104: 0 | V104: 0 | W104: 0 | X104: 0 | Y104: 0
A105: 43 | B105: 40 | C105: 1425.853333 | D105: 1249.64 | E105: 1013.6 | F105: 878.92 | G105: 669.6666667 | U105: 0 | V105: 0 | W105: 0 | X105: 0 | Y105: 0
A106: 44 | B106: 40 | C106: 1425.853333 | D106: 1249.64 | E106: 1013.6 | F106: 878.92 | G106: 669.6666667 | U106: 0 | V106: 0 | W106: 0 | X106: 0 | Y106: 0
A107: 45 | B107: 45 | C107: 1595.813333 | D107: 1398.6 | E107: 1130.92 | F107: 980.56 | G107: 746.8533333 | U107: 0 | V107: 0 | W107: 0 | X107: 0 | Y107: 0
A108: 46 | B108: 45 | C108: 1595.813333 | D108: 1398.6 | E108: 1130.92 | F108: 980.56 | G108: 746.8533333 | U108: 0 | V108: 0 | W108: 0 | X108: 0 | Y108: 0
A109: 47 | B109: 45 | C109: 1595.813333 | D109: 1398.6 | E109: 1130.92 | F109: 980.56 | G109: 746.8533333 | U109: 0 | V109: 0 | W109: 0 | X109: 0 | Y109: 0
A110: 48 | B110: 45 | C110: 1595.813333 | D110: 1398.6 | E110: 1130.92 | F110: 980.56 | G110: 746.8533333 | U110: 0 | V110: 0 | W110: 0 | X110: 0 | Y110: 0
A111: 49 | B111: 45 | C111: 1595.813333 | D111: 1398.6 | E111: 1130.92 | F111: 980.56 | G111: 746.8533333 | U111: 0 | V111: 0 | W111: 0 | X111: 0 | Y111: 0
A112: 50 | B112: 50 | C112: 1844.266667 | D112: 1616.626667 | E112: 1304.053333 | F112: 1130.92 | G112: 861.3733333 | U112: 0 | V112: 0 | W112: 0 | X112: 0 | Y112: 0
A113: 51 | B113: 50 | C113: 1844.266667 | D113: 1616.626667 | E113: 1304.053333 | F113: 1130.92 | G113: 861.3733333 | U113: 0 | V113: 0 | W113: 0 | X113: 0 | Y113: 0
A114: 52 | B114: 50 | C114: 1844.266667 | D114: 1616.626667 | E114: 1304.053333 | F114: 1130.92 | G114: 861.3733333 | U114: 0 | V114: 0 | W114: 0 | X114: 0 | Y114: 0
A115: 53 | B115: 50 | C115: 1844.266667 | D115: 1616.626667 | E115: 1304.053333 | F115: 1130.92 | G115: 861.3733333 | U115: 0 | V115: 0 | W115: 0 | X115: 0 | Y115: 0
A116: 54 | B116: 50 | C116: 1844.266667 | D116: 1616.626667 | E116: 1304.053333 | F116: 1130.92 | G116: 861.3733333 | U116: 0 | V116: 0 | W116: 0 | X116: 0 | Y116: 0
A117: 55 | B117: 55 | C117: 2061.826667 | D117: 1807.306667 | E117: 1455.906667 | F117: 1262.613333 | G117: 961.7066667 | U117: 0 | V117: 0 | W117: 0 | X117: 0 | Y117: 0
A118: 56 | B118: 55 | C118: 2061.826667 | D118: 1807.306667 | E118: 1455.906667 | F118: 1262.613333 | G118: 961.7066667 | U118: 0 | V118: 0 | W118: 0 | X118: 0 | Y118: 0
A119: 57 | B119: 55 | C119: 2061.826667 | D119: 1807.306667 | E119: 1455.906667 | F119: 1262.613333 | G119: 961.7066667 | U119: 0 | V119: 0 | W119: 0 | X119: 0 | Y119: 0
A120: 58 | B120: 55 | C120: 2061.826667 | D120: 1807.306667 | E120: 1455.906667 | F120: 1262.613333 | G120: 961.7066667 | U120: 0 | V120: 0 | W120: 0 | X120: 0 | Y120: 0
A121: 59 | B121: 55 | C121: 2061.826667 | D121: 1807.306667 | E121: 1455.906667 | F121: 1262.613333 | G121: 961.7066667 | U121: 0 | V121: 0 | W121: 0 | X121: 0 | Y121: 0
A122: 60 | B122: 60 | C122: 2206.68 | D122: 1934.333333 | E122: 1556.893333 | F122: 1349.973333 | G122: 1028.253333 | U122: 0 | V122: 0 | W122: 0 | X122: 0 | Y122: 0
A123: 61 | B123: 61 | C123: 2497.32 | D123: 2189.133333 | E123: 1761.2 | F123: 1527.4 | G123: 1163.306667 | U123: 0 | V123: 0 | W123: 0 | X123: 0 | Y123: 0
A124: 62 | B124: 62 | C124: 2774.613333 | D124: 2431.893333 | E124: 1956.173333 | F124: 1696.053333 | G124: 1291.733333 | U124: 0 | V124: 0 | W124: 0 | X124: 0 | Y124: 0
A125: 63 | B125: 63 | C125: 3072.16 | D125: 2693.133333 | E125: 2166.173333 | F125: 1878.24 | G125: 1430.706667 | U125: 0 | V125: 0 | W125: 0 | X125: 0 | Y125: 0
A126: 64 | B126: 64 | C126: 3391.266667 | D126: 2972.386667 | E126: 2391.293333 | F126: 2073.493333 | G126: 1579.293333 | U126: 0 | V126: 0 | W126: 0 | X126: 0 | Y126: 0
A127: 65 | B127: 65 | C127: 3730.906667 | D127: 3270.493333 | E127: 2631.72 | F127: 2282.186667 | G127: 1738.426667 | U127: 0 | V127: 0 | W127: 0 | X127: 0 | Y127: 0
A128: 66 | B128: 66 | C128: 4091.733333 | D128: 3586.613333 | E128: 2887.453333 | F128: 2503.76 | G128: =G54*$K$2 -> 1907.266667 | U128: 0 | V128: 0 | W128: 0 | X128: 0 | Y128: 0
A129: 67 | B129: 67 | C129: 4473.373333 | D129: 3920.933333 | E129: 3158.586667 | F129: 2738.773333 | G129: 2086.093333 | U129: 0 | V129: 0 | W129: 0 | X129: 0 | Y129: 0
A130: 68 | B130: 68 | C130: 4875.733333 | D130: 4273.733333 | E130: 3444.653333 | F130: 2987.04 | G130: 2275.28 | U130: 0 | V130: 0 | W130: 0 | X130: 0 | Y130: 0
A131: 69 | B131: 69 | C131: 5299.373333 | D131: 4644.92 | E131: 3746.306667 | F131: 3248.653333 | G131: 2474.36 | U131: 0 | V131: 0 | W131: 0 | X131: 0 | Y131: 0
A132: 70 | B132: 70 | C132: 5743.64 | D132: 5034.4 | E132: 4062.8 | F132: 3523.053333 | G132: 2683.426667 | U132: 0 | V132: 0 | W132: 0 | X132: 0 | Y132: 0
A133: 71 | B133: 71 | C133: 6208.813333 | D133: 5442.173333 | E133: 4394.88 | F133: 3810.986667 | G133: 2902.666667 | U133: 0 | V133: 0 | W133: 0 | X133: 0 | Y133: 0
A134: 72 | B134: 72 | C134: 6694.986667 | D134: 5868.613333 | E134: 4741.986667 | F134: 4111.706667 | G134: 3131.893333 | U134: 0 | V134: 0 | W134: 0 | X134: 0 | Y134: 0
A135: 73 | B135: 73 | C135: 7202.16 | D135: 6312.88 | E135: 5104.68 | F135: 4426.146667 | G135: 3371.293333 | U135: 0 | V135: 0 | W135: 0 | X135: 0 | Y135: 0
A136: 74 | B136: 74 | C136: 7730.333333 | D136: 6775.533333 | E136: 5482.12 | F136: 4753.653333 | G136: 3620.773333 | U136: 0 | V136: 0 | W136: 0 | X136: 0 | Y136: 0
A137: 75 | B137: 75 | C137: 8279.133333 | D137: 7256.76 | E137: 5874.866667 | F137: 5094.226667 | G137: 3880.146667 | U137: 0 | V137: 0 | W137: 0 | X137: 0 | Y137: 0
A138: 76 | B138: 75 | C138: 8279.133333 | D138: 7256.76 | E138: 5874.866667 | F138: 5094.226667 | G138: 3880.146667 | U138: 0 | V138: 0 | W138: 0 | X138: 0 | Y138: 0
A139: 77 | B139: 75 | C139: 8279.133333 | D139: 7256.76 | E139: 5874.866667 | F139: 5094.226667 | G139: 3880.146667 | U139: 0 | V139: 0 | W139: 0 | X139: 0 | Y139: 0
A140: 78 | B140: 75 | C140: 8279.133333 | D140: 7256.76 | E140: 5874.866667 | F140: 5094.226667 | G140: 3880.146667 | U140: 0 | V140: 0 | W140: 0 | X140: 0 | Y140: 0
A141: 79 | B141: 75 | C141: 8279.133333 | D141: 7256.76 | E141: 5874.866667 | F141: 5094.226667 | G141: 3880.146667 | U141: 0 | V141: 0 | W141: 0 | X141: 0 | Y141: 0
A142: 80 | B142: 75 | C142: 8279.133333 | D142: 7256.76 | E142: 5874.866667 | F142: 5094.226667 | G142: 3880.146667 | U142: 0 | V142: 0 | W142: 0 | X142: 0 | Y142: 0
A143: 81 | B143: 75 | C143: 8279.133333 | D143: 7256.76 | E143: 5874.866667 | F143: 5094.226667 | G143: 3880.146667 | U143: 0 | V143: 0 | W143: 0 | X143: 0 | Y143: 0
A144: 82 | B144: 75 | C144: 8279.133333 | D144: =D70*$K$2 -> 7256.76 | E144: 5874.866667 | F144: 5094.226667 | G144: 3880.146667 | U144: 0 | V144: 0 | W144: 0 | X144: 0 | Y144: 0
A145: 83 | B145: 75 | C145: =C71*$K$2 -> 8279.133333 | D145: 7256.76 | E145: 5874.866667 | F145: 5094.226667 | G145: 3880.146667 | U145: 0 | V145: 0 | W145: 0 | X145: 0 | Y145: 0
A146: 84 | B146: 75 | C146: 8279.133333 | D146: 7256.76 | E146: 5874.866667 | F146: 5094.226667 | G146: 3880.146667 | U146: 0 | V146: 0 | W146: 0 | X146: 0 | Y146: 0
A147: 1 | B147: 1 Child | C147: 392.7466667 | D147: 344.2133333 | E147: 287.84 | F147: 249.6666667 | G147: 190.2133333 | U147: 0 | V147: 0 | W147: 0 | X147: 0 | Y147: 0
A148: 2 | B148: 2 Children | C148: 667.24 | D148: 585.0133333 | E148: 489.2533333 | F148: 424.3866667 | G148: 323.3066667 | U148: 0 | V148: 0 | W148: 0 | X148: 0 | Y148: 0
A149: 3 | B149: 3+ Children | C149: 942.1066667 | D149: 825.72 | E149: 690.6666667 | F149: 598.92 | G149: 456.3066667 | U149: 0 | V149: 0 | W149: 0 | X149: 0 | Y149: 0
A151: BUPA GLOBAL PREMIER
A152: TARIFAS ANUALES
A153: EDAD
C154: 250 | D154: 2000 | E154: 5000 | F154: 10000 | U154: 2 | V154: 6 | W154: 10 | X154: 14 | Y154: 18
A155: 18 | B155: 18 | C155: 6542 | D155: 5934 | E155: 4464 | F155: 3261 | U155: 0 | V155: 0 | W155: 0 | X155: 0 | Y155: 0
A156: 19 | B156: 18 | C156: 6542 | D156: 5934 | E156: 4464 | F156: 3261 | U156: 0 | V156: 0 | W156: 0 | X156: 0 | Y156: 0
A157: 20 | B157: 18 | C157: 6542 | D157: 5934 | E157: 4464 | F157: 3261 | U157: 0 | V157: 0 | W157: 0 | X157: 0 | Y157: 0
A158: 21 | B158: 18 | C158: 6542 | D158: 5934 | E158: 4464 | F158: 3261 | U158: 0 | V158: 0 | W158: 0 | X158: 0 | Y158: 0
A159: 22 | B159: 18 | C159: 6542 | D159: 5934 | E159: 4464 | F159: 3261 | U159: 0 | V159: 0 | W159: 0 | X159: 0 | Y159: 0
A160: 23 | B160: 18 | C160: 6542 | D160: 5934 | E160: 4464 | F160: 3261 | U160: 0 | V160: 0 | W160: 0 | X160: 0 | Y160: 0
A161: 24 | B161: 18 | C161: 6542 | D161: 5934 | E161: 4464 | F161: 3261 | U161: 0 | V161: 0 | W161: 0 | X161: 0 | Y161: 0
A162: 25 | B162: 25 | C162: 6992 | D162: 6341 | E162: 4720 | F162: 3449 | U162: 0 | V162: 0 | W162: 0 | X162: 0 | Y162: 0
A163: 26 | B163: 25 | C163: 6992 | D163: 6341 | E163: 4720 | F163: 3449 | U163: 0 | V163: 0 | W163: 0 | X163: 0 | Y163: 0
A164: 27 | B164: 25 | C164: 6992 | D164: 6341 | E164: 4720 | F164: 3449 | U164: 0 | V164: 0 | W164: 0 | X164: 0 | Y164: 0
A165: 28 | B165: 25 | C165: 6992 | D165: 6341 | E165: 4720 | F165: 3449 | U165: 0 | V165: 0 | W165: 0 | X165: 0 | Y165: 0
A166: 29 | B166: 25 | C166: 6992 | D166: 6341 | E166: 4720 | F166: 3449 | U166: 0 | V166: 0 | W166: 0 | X166: 0 | Y166: 0
A167: 30 | B167: 30 | C167: 7774 | D167: 7055 | E167: 5182 | F167: 3785 | U167: 0 | V167: 0 | W167: 0 | X167: 0 | Y167: 0
A168: 31 | B168: 30 | C168: 7774 | D168: 7055 | E168: 5182 | F168: 3785 | U168: 0 | V168: 0 | W168: 0 | X168: 0 | Y168: 0
A169: 32 | B169: 30 | C169: 7774 | D169: 7055 | E169: 5182 | F169: 3785 | U169: 0 | V169: 0 | W169: 0 | X169: 0 | Y169: 0
A170: 33 | B170: 30 | C170: 7774 | D170: 7055 | E170: 5182 | F170: 3785 | U170: 0 | V170: 0 | W170: 0 | X170: 0 | Y170: 0
A171: 34 | B171: 30 | C171: 7774 | D171: 7055 | E171: 5182 | F171: 3785 | U171: 0 | V171: 0 | W171: 0 | X171: 0 | Y171: 0
A172: 35 | B172: 35 | C172: 8675 | D172: 7874 | E172: 5728 | F172: 4184 | U172: 0 | V172: 0 | W172: 0 | X172: 0 | Y172: 0
A173: 36 | B173: 35 | C173: 8675 | D173: 7874 | E173: 5728 | F173: 4184 | U173: 0 | V173: 0 | W173: 0 | X173: 0 | Y173: 0
A174: 37 | B174: 35 | C174: 8675 | D174: 7874 | E174: 5728 | F174: 4184 | U174: 0 | V174: 0 | W174: 0 | X174: 0 | Y174: 0
A175: 38 | B175: 35 | C175: 8675 | D175: 7874 | E175: 5728 | F175: 4184 | U175: 0 | V175: 0 | W175: 0 | X175: 0 | Y175: 0
A176: 39 | B176: 35 | C176: 8675 | D176: 7874 | E176: 5728 | F176: 4184 | U176: 0 | V176: 0 | W176: 0 | X176: 0 | Y176: 0
A177: 40 | B177: 40 | C177: 10041 | D177: 9113 | E177: 6577 | F177: 4807 | U177: 0 | V177: 0 | W177: 0 | X177: 0 | Y177: 0
A178: 41 | B178: 40 | C178: 10041 | D178: 9113 | E178: 6577 | F178: 4807 | U178: 0 | V178: 0 | W178: 0 | X178: 0 | Y178: 0
A179: 42 | B179: 40 | C179: 10041 | D179: 9113 | E179: 6577 | F179: 4807 | U179: 0 | V179: 0 | W179: 0 | X179: 0 | Y179: 0
A180: 43 | B180: 40 | C180: 10041 | D180: 9113 | E180: 6577 | F180: 4807 | U180: 0 | V180: 0 | W180: 0 | X180: 0 | Y180: 0
A181: 44 | B181: 40 | C181: 10041 | D181: 9113 | E181: 6577 | F181: 4807 | U181: 0 | V181: 0 | W181: 0 | X181: 0 | Y181: 0
A182: 45 | B182: 45 | C182: 11236 | D182: 10198 | E182: 7320 | F182: 5347 | U182: 0 | V182: 0 | W182: 0 | X182: 0 | Y182: 0
A183: 46 | B183: 45 | C183: 11236 | D183: 10198 | E183: 7320 | F183: 5347 | U183: 0 | V183: 0 | W183: 0 | X183: 0 | Y183: 0
A184: 47 | B184: 45 | C184: 11236 | D184: 10198 | E184: 7320 | F184: 5347 | U184: 0 | V184: 0 | W184: 0 | X184: 0 | Y184: 0
A185: 48 | B185: 45 | C185: 11236 | D185: 10198 | E185: 7320 | F185: 5347 | U185: 0 | V185: 0 | W185: 0 | X185: 0 | Y185: 0
A186: 49 | B186: 45 | C186: 11236 | D186: 10198 | E186: 7320 | F186: 5347 | U186: 0 | V186: 0 | W186: 0 | X186: 0 | Y186: 0
A187: 50 | B187: 50 | C187: 12991 | D187: 11788 | E187: 8429 | F187: 6160 | U187: 0 | V187: 0 | W187: 0 | X187: 0 | Y187: 0
A188: 51 | B188: 50 | C188: 12991 | D188: 11788 | E188: 8429 | F188: 6160 | U188: 0 | V188: 0 | W188: 0 | X188: 0 | Y188: 0
A189: 52 | B189: 50 | C189: 12991 | D189: 11788 | E189: 8429 | F189: 6160 | U189: 0 | V189: 0 | W189: 0 | X189: 0 | Y189: 0
A190: 53 | B190: 50 | C190: 12991 | D190: 11788 | E190: 8429 | F190: 6160 | U190: 0 | V190: 0 | W190: 0 | X190: 0 | Y190: 0
A191: 54 | B191: 50 | C191: 12991 | D191: 11788 | E191: 8429 | F191: 6160 | U191: 0 | V191: 0 | W191: 0 | X191: 0 | Y191: 0
A192: 55 | B192: 55 | C192: 14520 | D192: 13179 | E192: 9398 | F192: 6868 | U192: 0 | V192: 0 | W192: 0 | X192: 0 | Y192: 0
A193: 56 | B193: 55 | C193: 14520 | D193: 13179 | E193: 9398 | F193: 6868 | U193: 0 | V193: 0 | W193: 0 | X193: 0 | Y193: 0
A194: 57 | B194: 55 | C194: 14520 | D194: 13179 | E194: 9398 | F194: 6868 | U194: 0 | V194: 0 | W194: 0 | X194: 0 | Y194: 0
A195: 58 | B195: 55 | C195: 14520 | D195: 13179 | E195: 9398 | F195: 6868 | U195: 0 | V195: 0 | W195: 0 | X195: 0 | Y195: 0
A196: 59 | B196: 55 | C196: 14520 | D196: 13179 | E196: 9398 | F196: 6868 | U196: 0 | V196: 0 | W196: 0 | X196: 0 | Y196: 0
A197: 60 | B197: 60 | C197: 15541 | D197: 14101 | E197: 10046 | F197: 7339 | U197: 0 | V197: 0 | W197: 0 | X197: 0 | Y197: 0
A198: 61 | B198: 61 | C198: 17586 | D198: 15958 | E198: 11355 | F198: 8297 | U198: 0 | V198: 0 | W198: 0 | X198: 0 | Y198: 0
A199: 62 | B199: 62 | C199: 19536 | D199: 17731 | E199: 12612 | F199: 9215 | U199: 0 | V199: 0 | W199: 0 | X199: 0 | Y199: 0
A200: 63 | B200: 63 | C200: 21635 | D200: 19634 | E200: 13965 | F200: 10202 | U200: 0 | V200: 0 | W200: 0 | X200: 0 | Y200: 0
A201: 64 | B201: 64 | C201: 23880 | D201: 21673 | E201: 15420 | F201: 11265 | U201: 0 | V201: 0 | W201: 0 | X201: 0 | Y201: 0
A202: 65 | B202: 65 | C202: 26273 | D202: 23844 | E202: 16975 | F202: 12402 | U202: 0 | V202: 0 | W202: 0 | X202: 0 | Y202: 0
A203: 66 | B203: 66 | C203: 28814 | D203: 26146 | E203: 18631 | F203: 13611 | U203: 0 | V203: 0 | W203: 0 | X203: 0 | Y203: 0
... 1275 more rows
